{"text_format":"1","workbook":"xlsx","n_sheets":2,"sheets":["Pasiūlymas","Subtiekėjai"],"not_rendered":{"charts":0,"images":0,"macros":1,"external_links":0,"defined_names":1,"comments":0,"pivot_tables":0},"unopened":[],"bounds":{"document_bytes":16777216,"sheet_cells":100000,"rows_first":2000,"rows_last":500,"rows_between":2000,"halvings":0,"cell_chars":16384,"cell_head_chars":4096},"cells_cut":0,"cells_raw":0,"read":"whole","date_system":"1900"}

{"sheet":"Pasiūlymas","index":0,"n_rows":1329,"n_cols":13,"rows_kept":1329,"cut":false,"hidden":false,"merged":[[1318,1,1318,6],[1324,1,1324,6],[1288,1,1288,6],[1294,1,1294,6],[1300,1,1300,6],[1306,1,1306,6],[1312,1,1312,6],[1258,1,1258,6],[1264,1,1264,6],[1270,1,1270,6],[1276,1,1276,6],[1282,1,1282,6],[1228,1,1228,6],[1234,1,1234,6],[1240,1,1240,6],[1246,1,1246,6],[1252,1,1252,6],[1198,1,1198,6],[1204,1,1204,6],[1210,1,1210,6],[1216,1,1216,6],[1222,1,1222,6],[1168,1,1168,6],[1174,1,1174,6],[1180,1,1180,6],[1186,1,1186,6],[1192,1,1192,6],[1138,1,1138,6],[1144,1,1144,6],[1150,1,1150,6],[1156,1,1156,6],[1162,1,1162,6],[1108,1,1108,6],[1114,1,1114,6],[1120,1,1120,6],[1126,1,1126,6],[1132,1,1132,6],[1078,1,1078,6],[1084,1,1084,6],[1090,1,1090,6],[1096,1,1096,6],[1102,1,1102,6],[1048,1,1048,6],[1054,1,1054,6],[1060,1,1060,6],[1066,1,1066,6],[1072,1,1072,6],[1018,1,1018,6],[1024,1,1024,6],[1030,1,1030,6],[1036,1,1036,6],[1042,1,1042,6],[988,1,988,6],[994,1,994,6],[1000,1,1000,6],[1006,1,1006,6],[1012,1,1012,6],[958,1,958,6],[964,1,964,6],[970,1,970,6],[976,1,976,6],[982,1,982,6],[928,1,928,6],[934,1,934,6],[940,1,940,6],[946,1,946,6],[952,1,952,6],[898,1,898,6],[904,1,904,6],[910,1,910,6],[916,1,916,6],[922,1,922,6],[868,1,868,6],[874,1,874,6],[880,1,880,6],[886,1,886,6],[892,1,892,6],[838,1,838,6],[844,1,844,6],[850,1,850,6],[856,1,856,6],[862,1,862,6],[808,1,808,6],[814,1,814,6],[820,1,820,6],[826,1,826,6],[832,1,832,6],[778,1,778,6],[784,1,784,6],[790,1,790,6],[796,1,796,6],[802,1,802,6],[748,1,748,6],[754,1,754,6],[760,1,760,6],[766,1,766,6],[772,1,772,6],[718,1,718,6],[724,1,724,6],[730,1,730,6],[736,1,736,6],[742,1,742,6],[688,1,688,6],[694,1,694,6],[700,1,700,6],[706,1,706,6],[712,1,712,6],[658,1,658,6],[664,1,664,6],[670,1,670,6],[676,1,676,6],[682,1,682,6],[628,1,628,6],[634,1,634,6],[640,1,640,6],[646,1,646,6],[652,1,652,6],[598,1,598,6],[604,1,604,6],[610,1,610,6],[616,1,616,6],[622,1,622,6],[568,1,568,6],[574,1,574,6],[580,1,580,6],[586,1,586,6],[592,1,592,6],[538,1,538,6],[544,1,544,6],[550,1,550,6],[556,1,556,6],[562,1,562,6],[508,1,508,6],[514,1,514,6],[520,1,520,6],[526,1,526,6],[532,1,532,6],[478,1,478,6],[484,1,484,6],[490,1,490,6],[496,1,496,6],[502,1,502,6],[448,1,448,6],[454,1,454,6],[460,1,460,6],[466,1,466,6],[472,1,472,6],[418,1,418,6],[424,1,424,6],[430,1,430,6],[436,1,436,6],[442,1,442,6],[388,1,388,6],[394,1,394,6],[400,1,400,6],[406,1,406,6],[412,1,412,6],[358,1,358,6],[364,1,364,6],[370,1,370,6],[376,1,376,6],[382,1,382,6],[328,1,328,6],[334,1,334,6],[340,1,340,6],[346,1,346,6],[352,1,352,6],[298,1,298,6],[304,1,304,6],[310,1,310,6],[316,1,316,6],[322,1,322,6],[268,1,268,6],[274,1,274,6],[280,1,280,6],[286,1,286,6],[292,1,292,6],[238,1,238,6],[244,1,244,6],[250,1,250,6],[256,1,256,6],[262,1,262,6],[208,1,208,6],[214,1,214,6],[220,1,220,6],[226,1,226,6],[232,1,232,6],[178,1,178,6],[184,1,184,6],[190,1,190,6],[196,1,196,6],[202,1,202,6],[148,1,148,6],[154,1,154,6],[160,1,160,6],[166,1,166,6],[172,1,172,6],[118,1,118,6],[124,1,124,6],[130,1,130,6],[136,1,136,6],[142,1,142,6],[17,0,17,1],[17,2,17,4],[18,0,18,1],[18,2,18,4],[88,1,88,6],[94,1,94,6],[100,1,100,6],[106,1,106,6],[112,1,112,6],[58,1,58,6],[64,1,64,6],[70,1,70,6],[76,1,76,6],[82,1,82,6],[19,0,19,1],[19,2,19,4],[22,0,22,5],[28,1,28,6],[34,1,34,6],[40,1,40,6],[46,1,46,6],[52,1,52,6],[9,0,9,1],[9,2,9,4],[10,0,10,1],[10,2,10,4],[11,0,11,1],[11,2,11,4],[12,0,12,1],[12,2,12,4],[13,0,13,1],[13,2,13,4],[14,0,14,1],[14,2,14,4],[15,0,15,1],[15,2,15,4],[16,0,16,1],[16,2,16,4]]}
["Perkančioji organizacija, kuriai teikiamas pasiūlymas:",null,"VŠĮ Kauno klinikinė ligoninė"]
[]
[null,"PASIŪLYMAS"]
[null,"Medikamentai ne per CPO"]
[]
["Data:","2019-01-15"]
["Nr.:"]
["Vieta:","Vilnius"]
[]
["Tiekėjo pavadinimas /Jeigu dalyvauja ūkio subjektų grupė, surašomi visi dalyvių pavadinimai/",null,"UAB Armila"]
["Įmonės kodas /Jeigu dalyvauja ūkio subjektų grupė, surašomi visi dalyvių kodai/",null,123813957]
["PVM mokėtojo kodas /Jeigu dalyvauja ūkio subjektų grupė, surašomi visi dalyvių kodai/",null,"LT238139515"]
["Banko pavadinimas, banko kodas, sąskaitos Nr.",null,"AB Luminor bank LT454010042400030802"]
["Tiekėjo adresas /Jeigu dalyvauja ūkio subjektų grupė, surašomi visi dalyvių adresai/",null,"Molėtų pl. 75, Vilnius"]
["Telefono numeris",null,"8 5 2777596"]
["Fakso numeris",null,"8 5 2737381"]
["El. pašto adresas",null,"info@armila.com"]
["Asmens, pasirašiusio pasiūlymą saugiu elektroniniu parašu, vardas, pavardė, pareigos ",null,"pardavimo skyriaus viršininko pavaduotojas Evaldas Anilionis"]
["Asmens, įgalioto pasirašyti sutartį, vardas, pavardė, pareigos",null,"direktorius Remigijus Mielinis"]
[]
[]
[]
["1. Šiuo pasiūlymu pažymime, kad sutinkame su visomis pirkimo sąlygomis, nustatytomis:\n1) pirkimo skelbime, paskelbtame Viešųjų pirkimų įstatymo nustatyta tvarka;\n2) pirkimo sąlygose ir kituose pirkimo dokumentuose (jų paaiškinimuose, papildymuose).\n"]
[]
["Siūlomas pirkimo objektas visiškai atitinka pirkimo sąlygose nustatytus reikalavimus ir jo kaina yra:"]
[]
[]
["Nr.","Pavadinimas","Kiekis","Mato vienetas","Vieneto įkainis be PVM","Suma be PVM","Siūlomos prekės pavadinimas",null,null,null,"","",""]
["1.","125mg Vaistinio valerijono šaknų sausojo ekstrakto (4:1), 75mg Melisos sausojo ekstrakto (10:1), 50mg Rožinės radiolės sausojo ekstrakto 3% 1ml tirpalo"]
["1.1.","125mg Vaistinio valerijono šaknų sausojo ekstrakto (4:1), 75mg Melisos sausojo ekstrakto (10:1), 50mg Rožinės radiolės sausojo ekstrakto 3% 1ml tirpalo",1500,"ml",null,null,null,null,null,""]
[null,null,null,null,"Suma be PVM"]
[null,null,null,null,"PVM suma"]
[null,null,null,null,"Suma su PVM",null,null,null,null,""]
[null,null,null,null,null,null,null,null,null,null,null,""]
["2.","Acetilsalicilo rūgštis 240mg + Paracetamolis 180mg+ Kofeinas 30mg tab.",null,null,null,null,null,null,null,null,null,""]
["2.1.","Acetilsalicilo rūgštis 240mg + Paracetamolis 180mg+ Kofeinas 30mg tab.",10,"Tab.",null,null,null,null,null,"","",""]
[null,null,null,null,"Suma be PVM",null,null,null,null,"","",""]
[null,null,null,null,"PVM suma",null,null,null,null,"","",""]
[null,null,null,null,"Suma su PVM"]
[]
["3.","Acetonum",null,null,null,null,null,null,null,""]
["3.1.","Acetonum",12,"L",4.99,{"$f":"C42*E42","v":59.88},"ACETONUM 1 L (Reachem)"]
[null,null,null,null,"Suma be PVM",{"$f":"F42","v":59.88},null,null,null,null,null,""]
[null,null,null,null,"PVM suma",{"$f":"F43*0.21","v":12.5748},null,null,null,"",null,""]
[null,null,null,null,"Suma su PVM",{"$f":"F43+F44","v":72.454800000000006},null,null,null,null,null,""]
[]
["4.","Acidum aceticum",null,null,null,null,null,null,null,"","",""]
["4.1.","Acidum aceticum",3,"L",5.65,{"$f":"C48*E48","v":16.950000000000003},"AC.ACETICUM GLACIALE 1 L (GMP)",null,null,"","",""]
[null,null,null,null,"Suma be PVM",{"$f":"F48","v":16.950000000000003},null,null,null,"","",""]
[null,null,null,null,"PVM suma",{"$f":"F49*0.21","v":3.5595000000000003}]
[null,null,null,null,"Suma su PVM",{"$f":"F49+F50","v":20.509500000000003}]
[]
["5.","Acidum citricum"]
["5.1.","Acidum citricum",2,"kg",12.8,{"$f":"C54*E54","v":25.6},"AC.CITRICUM MONOH. 1 KG PULV. (GMP)"]
[null,null,null,null,"Suma be PVM",{"$f":"F54","v":25.6}]
[null,null,null,null,"PVM suma",{"$f":"F55*0.21","v":5.3760000000000003}]
[null,null,null,null,"Suma su PVM",{"$f":"F55+F56","v":30.976000000000003}]
[]
["6.","Acidum folicum "]
["6.1.","Acidum folicum ",50,"g",2,{"$f":"C60*E60","v":100},"AC.FOLICUM 5 G PULV. (GMP)"]
[null,null,null,null,"Suma be PVM",{"$f":"F60","v":100}]
[null,null,null,null,"PVM suma",{"$f":"F61*0.21","v":21}]
[null,null,null,null,"Suma su PVM",{"$f":"F61+F62","v":121}]
[]
["7.","Acidum folicum 400mcg"]
["7.1.","Acidum folicum 400mcg",2000,"tab.",3.3000000000000002E-2,{"$f":"C66*E66","v":66},"FOLICA 400 mcg tab. N30 (Vitabalans OY)"]
[null,null,null,null,"Suma be PVM",{"$f":"F66","v":66}]
[null,null,null,null,"PVM suma",{"$f":"F67*0.21","v":13.86}]
[null,null,null,null,"Suma su PVM",{"$f":"F67+F68","v":79.86}]
[]
["8.","Acidum salicylicum"]
["8.1.","Acidum salicylicum",3,"kg",18,{"$f":"C72*E72","v":54},"AC.SALICYLICUM 1 KG PULV. (GMP)"]
[null,null,null,null,"Suma be PVM",{"$f":"F72","v":54}]
[null,null,null,null,"PVM suma",{"$f":"F73*0.21","v":11.34}]
[null,null,null,null,"Suma su PVM",{"$f":"F73+F74","v":65.34}]
[]
["9.","Adata odos alerginiams mėginiams atlikti PLASTIKINĖS"]
["9.1.","Adata odos alerginiams mėginiams atlikti PLASTIKINĖS",5000,"vnt."]
[null,null,null,null,"Suma be PVM"]
[null,null,null,null,"PVM suma"]
[null,null,null,null,"Suma su PVM"]
[]
["10.","Adata insulininiams penams 0,23mm 32G x 4mm"]
["10.1.","Adata insuliniams penams 0,23mm 32G x 4mm",2000,"vnt."]
[null,null,null,null,"Suma be PVM"]
[null,null,null,null,"PVM suma"]
[null,null,null,null,"Suma su PVM"]
[]
["11.","Aklinidino 340mcg+ Formoterolio 12mcg dozuoti įkvepiamieji milteliai"]
["11.1.","Aklinidino 340mcg+ Formoterolio 12mcg dozuoti įkvepiamieji milteliai",180,"doz",0.65600000000000003,{"$f":"C90*E90","v":118.08},"BRIMICA GENUAIR 340 µg/12 µg dozuoti įkvepiamieji milteliai 60 doz.N1 (AstraZeneca AB)"]
[null,null,null,null,"Suma be PVM",{"$f":"F90","v":118.08}]
[null,null,null,null,"PVM suma",{"$f":"F91*0.05","v":5.9039999999999999}]
[null,null,null,null,"Suma su PVM",{"$f":"F91+F92","v":123.98399999999999}]
[]
["12.","Aktyvinta anglis milteliais po 61,5g"]
["12.1.","Aktyvinta anglis milteliais po 61,5g",5,"vnt.",30.4,{"$f":"C96*E96","v":152},"ULTRACARBON granulės 61,5 g (Merck Sharp & Dohme B.V.)"]
[null,null,null,null,"Suma be PVM",{"$f":"F96","v":152}]
[null,null,null,null,"PVM suma",{"$f":"F97*0.05","v":7.6000000000000005}]
[null,null,null,null,"Suma su PVM",{"$f":"F97+F98","v":159.6}]
[]
["13.","Albendazolis 400mg"]
["13.1.","Albendazolis 400mg",120,"tab.",1.25,{"$f":"C102*E102","v":150},"ESKAZOLE 400 mg tabletės N60 (Glaxo UK-Wellcome)"]
[null,null,null,null,"Suma be PVM",{"$f":"F102","v":150}]
[null,null,null,null,"PVM suma",{"$f":"F103*0.05","v":7.5}]
[null,null,null,null,"Suma su PVM",{"$f":"F103+F104","v":157.5}]
[]
["14.","Ambroksolio 15mg/5ml sirupas"]
["14.1.","Ambroksolio 15mg/5ml sirupas",14000,"ml",2.5000000000000001E-2,{"$f":"C108*E108","v":350},"BRONTEX 15 mg/5 ml sirupas 100 ml N1 (Ratiopharm GmbH & Co)"]
[null,null,null,null,"Suma be PVM",{"$f":"F108","v":350}]
[null,null,null,null,"PVM suma",{"$f":"F109*0.05","v":17.5}]
[null,null,null,null,"Suma su PVM",{"$f":"F109+F110","v":367.5}]
[]
["15.","Amfotericinas B liposominis 50mg "]
["15.1.","Amfotericinas B liposominis 50mg ",5,"amp.",130,{"$f":"C114*E114","v":650},"AMBISOME 50 mg milteliai infuziniam tirpalui N10 (Gilead)"]
[null,null,null,null,"Suma be PVM",{"$f":"F114","v":650}]
[null,null,null,null,"PVM suma",{"$f":"F115*0.05","v":32.5}]
[null,null,null,null,"Suma su PVM",{"$f":"F115+F116","v":682.5}]
[]
["16.","Amino rūgštys + riebalinės emulsijos 1920ml (periferinis)"]
["16.1.","Amino rūgštys + riebalinės emulsijos 1920ml (periferinis)",40,"flak."]
[null,null,null,null,"Suma be PVM"]
[null,null,null,null,"PVM suma"]
[null,null,null,null,"Suma su PVM"]
[]
["17.","Ampicilinas 1000mg + Sulbaktamas 500mg"]
["17.1.","Ampicilinas 1000mg + Sulbaktamas 500mg",3400,"amp./but.",1.9,{"$f":"C126*E126","v":6460},"BITAMMON 1,5 g milteliai injekciniam ar infuziniam tirpalui N10 (BB Pharma s.r.o.)"]
[null,null,null,null,"Suma be PVM",{"$f":"F126","v":6460}]
[null,null,null,null,"PVM suma",{"$f":"F127*0.05","v":323}]
[null,null,null,null,"Suma su PVM",{"$f":"F127+F128","v":6783}]
[]
["18.","Anaesthesinum"]
["18.1.","Anaesthesinum",400,"g",0.2,{"$f":"C132*E132","v":80},"ANAESTESINUM (BENZOCAINE) pulv 500 g (GMP)"]
[null,null,null,null,"Suma be PVM",{"$f":"F132","v":80}]
[null,null,null,null,"PVM suma",{"$f":"F133*0.21","v":16.8}]
[null,null,null,null,"Suma su PVM",{"$f":"F133+F134","v":96.8}]
[]
["19.","Argenthi nitras"]
["19.1.","Argenthi nitras",50,"g",1.7,{"$f":"C138*E138","v":85},"ARGENTUM NITRAS 20 GR PH.EUR PULV. (Laboratoires Argenol)"]
[null,null,null,null,"Suma be PVM",{"$f":"F138","v":85}]
[null,null,null,null,"PVM suma",{"$f":"F139*0.21","v":17.849999999999998}]
[null,null,null,null,"Suma su PVM",{"$f":"F139+F140","v":102.85}]
[]
["20.","Bario sulfatas rentgeno procedūrai"]
["20.1.","Bario sulfatas rentgeno procedūrai",20,"kg",13,{"$f":"C144*E144","v":260},"BARII SULFAS pulv 2 kg (GMP)"]
[null,null,null,null,"Suma be PVM",{"$f":"F144","v":260}]
[null,null,null,null,"PVM suma",{"$f":"F145*0.21","v":54.6}]
[null,null,null,null,"Suma su PVM",{"$f":"F145+F146","v":314.60000000000002}]
[]
["21.","Bario sulfatas 1000mg/ml 200ml"]
["21.1.","Bario sulfatas 1000mg/ml 200ml",60,"flak.",4.7,{"$f":"C150*E150","v":282},"BARII SULFAS Medana 1 g/ml geriamoji ar tiesiosios žarnos suspensija 200 ml N1 (Medana Pharma Terpol Group)"]
[null,null,null,null,"Suma be PVM",{"$f":"F150","v":282}]
[null,null,null,null,"PVM suma",{"$f":"F151*0.05","v":14.100000000000001}]
[null,null,null,null,"Suma su PVM",{"$f":"F151+F152","v":296.10000000000002}]
[]
["22.","Benfotiaminas 100mg + Piridoksinas (B6) 100mg + Cianokobalaminas 1000mcg"]
["22.1.","Benfotiaminas 100mg + Piridoksinas (B6) 100mg + Cianokobalaminas 1000mcg",100,"amp.",0.56999999999999995,{"$f":"C156*E156","v":56.999999999999993},"MILGAMMA N 100 mg/100 mg/1 mg/2 ml injekcinis tirpalas N25 (Worwag Pharma GmbH&Co,KG)"]
[null,null,null,null,"Suma be PVM",{"$f":"F156","v":56.999999999999993}]
[null,null,null,null,"PVM suma",{"$f":"F157*0.05","v":2.8499999999999996}]
[null,null,null,null,"Suma su PVM",{"$f":"F157+F158","v":59.849999999999994}]
[]
["23.","Benzatino penicilinas 2400000 TV "]
["23.1.","Benzatino penicilinas 2400000 TV ",30,"amp."]
[null,null,null,null,"Suma be PVM"]
[null,null,null,null,"PVM suma"]
[null,null,null,null,"Suma su PVM"]
[]
["24.","Betainas su poliheksanidu 350ml "]
["24.1.","Betainas su poliheksanidu 350ml ",300,"flak.",7.32,{"$f":"C168*E168","v":2196},"PRONTOSAN ŽAIZDŲ PLOVIMO TIRPALAS 350 ML (B.Braun Melsungen AG)"]
[null,null,null,null,"Suma be PVM",{"$f":"F168","v":2196}]
[null,null,null,null,"PVM suma",{"$f":"F169*0.21","v":461.15999999999997}]
[null,null,null,null,"Suma su PVM",{"$f":"F169+F170","v":2657.16}]
[]
["25.","Bolus alba"]
["25.1.","Bolus alba",2,"kg",12.95,{"$f":"C174*E174","v":25.9},"BOLUS ALBA (CAOLIN) 1 KG (GMP)"]
[null,null,null,null,"Suma be PVM",{"$f":"F174","v":25.9}]
[null,null,null,null,"PVM suma",{"$f":"F175*0.21","v":5.4389999999999992}]
[null,null,null,null,"Suma su PVM",{"$f":"F175+F176","v":31.338999999999999}]
[]
["26.","Botulizmo antitoksinas infuz tirp.  250ml "]
["26.1.","Botulizmo antitoksinas infuz tirp.  250ml ",2,"vnt."]
[null,null,null,null,"Suma be PVM"]
[null,null,null,null,"PVM suma"]
[null,null,null,null,"Suma su PVM"]
[]
["27.","Briliantinis žaliasis 1mg/1ml 10ml"]
["27.1.","Briliantinis žaliasis 1mg/1ml 10ml",300,"but.",0.8,{"$f":"C186*E186","v":240},"BRILIANTINIS ŽALIASIS VALENTIS 10 ML TIRPALAS (UAB \"Valentis\")"]
[null,null,null,null,"Suma be PVM",{"$f":"F186","v":240}]
[null,null,null,null,"PVM suma",{"$f":"F187*0.05","v":12}]
[null,null,null,null,"Suma su PVM",{"$f":"F187+F188","v":252}]
[]
["28.","Budesonidum 160mcg + Formoterolum 4.5mgc doz. Milteliai inhaliacijoms"]
["28.1.","Budesonidum 160mcg + Formoterolum 4.5mgc doz. Milteliai inhaliacijoms",600,"doz.",0.186,{"$f":"C192*E192","v":111.6},"BUFOMIX EASYHALER ĮKVEPIAMIEJI MILTELIAI 160MCG/4,5MCG/DOZĖJE 120D (Orion Corporation(Orion Pharma)"]
[null,null,null,null,"Suma be PVM",{"$f":"F192","v":111.6}]
[null,null,null,null,"PVM suma",{"$f":"F193*0.05","v":5.58}]
[null,null,null,null,"Suma su PVM",{"$f":"F193+F194","v":117.17999999999999}]
[]
["29.","Bupivakainas 0,5% 10ml (tinka spinalinei anestezijai)"]
["29.1.","Bupivakainas 0,5% 10ml (tinka spinalinei anestezijai)",400,"amp.",1.1599999999999999,{"$f":"C198*E198","v":463.99999999999994},"BUPIVACAINE-GRINDEKS 5 mg/ml injekcinis tirpalas 10 ml N5 (JSC \"Grindeks\")"]
[null,null,null,null,"Suma be PVM",{"$f":"F198","v":463.99999999999994}]
[null,null,null,null,"PVM suma",{"$f":"F199*0.05","v":23.2}]
[null,null,null,null,"Suma su PVM",{"$f":"F199+F200","v":487.19999999999993}]
[]
["30.","Burnos gelis "]
["30.1.","Burnos gelis 12 % nuo burnos pažeidimų. Sudėtis: ( vandens, polivinilo pirolidono (PVP), maltodekstrino, propeno glikolio, PEG-40 hidrinto ricinos aliejaus, ksantano dervos, kalio sorbato, natrio benzoato, natrio hialuronato, kvapiųjų medžiagų, benzalkonio chlorido, dinatrio EDTA, natrio sacharino, dikalio glicirizato, tikrojo alavijo (Aloe barbadensis.",100,"ml"]
[null,null,null,null,"Suma be PVM"]
[null,null,null,null,"PVM suma"]
[null,null,null,null,"Suma su PVM"]
[]
["31.","Butyrum cacao"]
["31.1.","Butyrum cacao",1,"kg",25.5,{"$f":"C210*E210","v":25.5},"CACAO BUTYRUM 1 KG (MD) (CPC Wolfgang Muhlbauer GmbH)"]
[null,null,null,null,"Suma be PVM",{"$f":"F210","v":25.5}]
[null,null,null,null,"PVM suma",{"$f":"F211*0.21","v":5.3549999999999995}]
[null,null,null,null,"Suma su PVM",{"$f":"F211+F212","v":30.855}]
[]
["32.","Calcii carbonas"]
["32.1.","Calcii carbonas",4,"kg",7.9,{"$f":"C216*E216","v":31.6},"CALCII CARBONAS PRAEC. pulv 1 kg (Zaklad Farm. AMARA Sp. z o.o.)"]
[null,null,null,null,"Suma be PVM",{"$f":"F216","v":31.6}]
[null,null,null,null,"PVM suma",{"$f":"F217*0.21","v":6.6360000000000001}]
[null,null,null,null,"Suma su PVM",{"$f":"F217+F218","v":38.236000000000004}]
[]
["33.","Calcii polisteronsulfonatum "]
["33.1.","Calcii polisteronsulfonatum ",30,"kg",122,{"$f":"C222*E222","v":3660},"RESINCALCIO milteliai geriamajai suspensijai 400 g N1 (Laboratorios RUBIO, S.A.)"]
[null,null,null,null,"Suma be PVM",{"$f":"F222","v":3660}]
[null,null,null,null,"PVM suma",{"$f":"F223*0.05","v":183}]
[null,null,null,null,"Suma su PVM",{"$f":"F223+F224","v":3843}]
[]
["34.","Chlorheksidinas 0,2mg/ml 1000ml"]
["34.1.","Chlorheksidinas 0,2mg/ml 1000ml",1400,"flak.",2.86,{"$f":"C228*E228","v":4004},"CHLORHEXIDINO IRIGACIJOMS 0,02% 1000 ML TIRPALAS (Fresenius Kabi)"]
[null,null,null,null,"Suma be PVM",{"$f":"F228","v":4004}]
[null,null,null,null,"PVM suma",{"$f":"F229*0.05","v":200.20000000000002}]
[null,null,null,null,"Suma su PVM",{"$f":"F229+F230","v":4204.2}]
[]
["35.","Chlorhexidine gluconate 20%"]
["35.1.","Chlorhexidine gluconate 20%",5,"L",30.9,{"$f":"C234*E234","v":154.5},"CHLORHEXIDINUM DIGLUCONAS 20 % 1 KG SOL. (GMP)"]
[null,null,null,null,"Suma be PVM",{"$f":"F234","v":154.5}]
[null,null,null,null,"PVM suma",{"$f":"F235*0.21","v":32.445}]
[null,null,null,null,"Suma su PVM",{"$f":"F235+F236","v":186.94499999999999}]
[]
["36.","Cholino salicilatas 200mg/ml ausų lašai"]
["36.1.","Cholino salicilatas 200mg/ml ausų lašai",60,"ml",0.43,{"$f":"C240*E240","v":25.8},"OTINUM LAŠAI, TIRPALAS 2G/10G N1 AUSŲ (MEDA Pharma GmbH)"]
[null,null,null,null,"Suma be PVM",{"$f":"F240","v":25.8}]
[null,null,null,null,"PVM suma",{"$f":"F241*0.05","v":1.29}]
[null,null,null,null,"Suma su PVM",{"$f":"F241+F242","v":27.09}]
[]
["37.","Cinko oksido tepalas 100mg/g "]
["37.1.","Cinko oksido tepalas 100mg/g ",90,"g",6.7500000000000004E-2,{"$f":"C246*E246","v":6.0750000000000002},"CINKO OKSIDO Big Pack tepalas 40 g (Lab.kosmet. CANEXPOL Sp.z o.o.)"]
[null,null,null,null,"Suma be PVM",{"$f":"F246","v":6.0750000000000002}]
[null,null,null,null,"PVM suma",{"$f":"F247*0.21","v":1.2757499999999999}]
[null,null,null,null,"Suma su PVM",{"$f":"F247+F248","v":7.3507499999999997}]
[]
["38.","Citrulus colocynthis, ammonium bromatum, atropinum sulfuricum, veratrum album, magnesium phosphoricum, gelsemium sempervirens, passiflora incarnata, agaricus, chamomilla recutita, cuprum sulfuricim, aconitum napellus, laktozės, magnio stearato."]
["38.1.","Citrulus colocynthis, ammonium bromatum, atropinum sulfuricum, veratrum album, magnesium phosphoricum, gelsemium sempervirens, passiflora incarnata, agaricus, chamomilla recutita, cuprum sulfuricim, aconitum napellus, laktozės, tab magnio stearato.",14000,"tab.",7.5999999999999998E-2,{"$f":"C252*E252","v":1064},"SPASCUPREEL tab. N50 (Heel GmbH)"]
[null,null,null,null,"Suma be PVM",{"$f":"F252","v":1064}]
[null,null,null,null,"PVM suma",{"$f":"F253*0.05","v":53.2}]
[null,null,null,null,"Suma su PVM",{"$f":"F253+F254","v":1117.2}]
[]
["39.","Klindamicinas 600mg"]
["39.1.","Klindamicinas 600mg",60,"tab.",0.70899999999999996,{"$f":"C258*E258","v":42.54},"CLINDAMYCIN-MIP PLĖVELE DENGTOS TABLETĖS 600 MG N32 (MIP Pharma GmbH)"]
[null,null,null,null,"Suma be PVM",{"$f":"F258","v":42.54}]
[null,null,null,null,"PVM suma",{"$f":"F259*0.05","v":2.1270000000000002}]
[null,null,null,null,"Suma su PVM",{"$f":"F259+F260","v":44.667000000000002}]
[]
["40.","Crystal violet (gentian violet) pulv. 10g"]
["40.1.","Crystal violet (gentian violet) pulv. 10g",200,"g",0.99,{"$f":"C264*E264","v":198},"CRYSTAL VIOLET (GENTIAN VIOLET) 10 G PULV. (GMP)"]
[null,null,null,null,"Suma be PVM",{"$f":"F264","v":198}]
[null,null,null,null,"PVM suma",{"$f":"F265*0.21","v":41.58}]
[null,null,null,null,"Suma su PVM",{"$f":"F265+F266","v":239.57999999999998}]
[]
["41.","Dalteparino natrio druska 10000 anti-Xa TV/0,4ml"]
["41.1.","Dalteparino natrio druska 10000 anti-Xa TV/0,4ml",100,"amp."]
[null,null,null,null,"Suma be PVM"]
[null,null,null,null,"PVM suma"]
[null,null,null,null,"Suma su PVM"]
[]
["42.","Dantrolenas 20mg milt. i.v."]
["42.1.","Dantrolenas 20mg milt. i.v.",12,"amp.",112.91,{"$f":"C276*E276","v":1354.92},"DANTROLEN 20 mg milteliai ir tirpiklis injekciniam tirpalui N12 (Norgine B.V.)"]
[null,null,null,null,"Suma be PVM",{"$f":"F276","v":1354.92}]
[null,null,null,null,"PVM suma",{"$f":"F277*0.05","v":67.746000000000009}]
[null,null,null,null,"Suma su PVM",{"$f":"F277+F278","v":1422.6660000000002}]
[]
["43.","Dapsonas 50mg"]
["43.1.","Dapsonas 50mg",300,"tab.",0.184,{"$f":"C282*E282","v":55.199999999999996},"DAPSON-FATOL 50 mg tab. N25 (Riemser Pharma GmbH)"]
[null,null,null,null,"Suma be PVM",{"$f":"F282","v":55.199999999999996}]
[null,null,null,null,"PVM suma",{"$f":"F283*0.05","v":2.76}]
[null,null,null,null,"Suma su PVM",{"$f":"F283+F284","v":57.959999999999994}]
[]
["44.","Deksketoprofenas 25mg + Tramadolis 75mg "]
["44.1.","Deksketoprofenas 25mg + Tramadolis 75mg ",2500,"tab.",0.31259999999999999,{"$f":"C288*E288","v":781.5},"SKUDEXA 75 mg/25 mg plėvele dengtos tabletės N15 (Berlin-Chemie/Menarini Group)"]
[null,null,null,null,"Suma be PVM",{"$f":"F288","v":781.5}]
[null,null,null,null,"PVM suma",{"$f":"F289*0.05","v":39.075000000000003}]
[null,null,null,null,"Suma su PVM",{"$f":"F289+F290","v":820.57500000000005}]
[]
["45.","Dekspantenolis 50mg/g kremas "]
["45.1.","Dekspantenolis 50mg/g kremas ",2100,"g",7.3999999999999996E-2,{"$f":"C294*E294","v":155.4},"RECREOL 50 mg/g kremas 50 g N1 (JSC \"Grindeks\")"]
[null,null,null,null,"Suma be PVM",{"$f":"F294","v":155.4}]
[null,null,null,null,"PVM suma",{"$f":"F295*0.05","v":7.7700000000000005}]
[null,null,null,null,"Suma su PVM",{"$f":"F295+F296","v":163.17000000000002}]
[]
["46.","Dekspantenolis 50mg/g tepalas "]
["46.1.","Dekspantenolis 50mg/g tepalas ",600,"g",7.3999999999999996E-2,{"$f":"C300*E300","v":44.4},"RECREOL 50 mg/g tepalas 50 g N1 (JSC \"Grindeks\")"]
[null,null,null,null,"Suma be PVM",{"$f":"F300","v":44.4}]
[null,null,null,null,"PVM suma",{"$f":"F301*0.05","v":2.2200000000000002}]
[null,null,null,null,"Suma su PVM",{"$f":"F301+F302","v":46.62}]
[]
["47.","Desmopresinas 15µg/ml "]
["47.1.","Desmopresinas 15µg/ml ",10,"amp.",26.797999999999998,{"$f":"C306*E306","v":267.97999999999996},"OCTOSTIM TIRPALAS 15MCG/ML N10 INJEKCINIS (Ferring Pharmaceuticals)"]
[null,null,null,null,"Suma be PVM",{"$f":"F306","v":267.97999999999996}]
[null,null,null,null,"PVM suma",{"$f":"F307*0.05","v":13.398999999999999}]
[null,null,null,null,"Suma su PVM",{"$f":"F307+F308","v":281.37899999999996}]
[]
["48.","Diasminas/Hesperidinas 500mg"]
["48.1.","Diasminas/Hesperidinas 500mg",180,"tab.",0.23799999999999999,{"$f":"C312*E312","v":42.839999999999996},"DETRALEX 500 mg plėvele dengtos tabletės N60 (Les Laboratoires Servier)"]
[null,null,null,null,"Suma be PVM",{"$f":"F312","v":42.839999999999996}]
[null,null,null,null,"PVM suma",{"$f":"F313*0.05","v":2.1419999999999999}]
[null,null,null,null,"Suma su PVM",{"$f":"F313+F314","v":44.981999999999999}]
[]
["49.","Diazepamas 10mg/2,5ml rektalinis tirpalas "]
["49.1.","Diazepamas 10mg/2,5ml rektalinis tirpalas ",20,"kliz.",3.62,{"$f":"C318*E318","v":72.400000000000006},"DIAZEPAM DESITIN 10 mg/2,5 ml rektalinės tūbos N5 (Desitin Arzneimittel GmbH)"]
[null,null,null,null,"Suma be PVM",{"$f":"F318","v":72.400000000000006}]
[null,null,null,null,"PVM suma",{"$f":"F319*0.05","v":3.6200000000000006}]
[null,null,null,null,"Suma su PVM",{"$f":"F319+F320","v":76.02000000000001}]
[]
["50.","Diazepamas 5mg/2,5ml rektalinis tirpalas "]
["50.1.","Diazepamas 5mg/2,5ml rektalinis tirpalas ",10,"kliz.",3.14,{"$f":"C324*E324","v":31.400000000000002},"DIAZEPAM DESITIN 5 mg/2,5 ml rektalinės tūbos N5 (Desitin Arzneimittel GmbH)"]
[null,null,null,null,"Suma be PVM",{"$f":"F324","v":31.400000000000002}]
[null,null,null,null,"PVM suma",{"$f":"F325*0.05","v":1.5700000000000003}]
[null,null,null,null,"Suma su PVM",{"$f":"F325+F326","v":32.97}]
[]
["51.","Difterijos antitoksinas 10000IU 10ml"]
["51.1.","Difterijos antitoksinas 10000IU 10ml",10,"flak."]
[null,null,null,null,"Suma be PVM"]
[null,null,null,null,"PVM suma"]
[null,null,null,null,"Suma su PVM"]
[]
["52.","Digoksinas 0,25mg/ml "]
["52.1.","Digoksinas 0,25mg/ml ",500,"amp.",0.48,{"$f":"C336*E336","v":240},"DIGOXIN 0,25 mg/ml injekcinis tirpalas 2 ml N5 (Warszawskie Zak.Farm. Polfa SA)"]
[null,null,null,null,"Suma be PVM",{"$f":"F336","v":240}]
[null,null,null,null,"PVM suma",{"$f":"F337*0.05","v":12}]
[null,null,null,null,"Suma su PVM",{"$f":"F337+F338","v":252}]
[]
["53.","Dikalio klozepatas 5mg "]
["53.1.","Dikalio klozepatas 5mg ",150,"tab.",8.3000000000000004E-2,{"$f":"C342*E342","v":12.450000000000001},"TRANXENE 5 mg kapsulės N30 (Sanofi-Aventis)"]
[null,null,null,null,"Suma be PVM",{"$f":"F342","v":12.450000000000001}]
[null,null,null,null,"PVM suma",{"$f":"F343*0.05","v":0.62250000000000005}]
[null,null,null,null,"Suma su PVM",{"$f":"F343+F344","v":13.072500000000002}]
[]
["54.","Distiliuotas vanduo irigacijoms 500ml"]
["54.1.","Distiliuotas vanduo irigacijoms 500ml",100,"flak."]
[null,null,null,null,"Suma be PVM"]
[null,null,null,null,"PVM suma"]
[null,null,null,null,"Suma su PVM"]
[]
["55.","Donepazilas 5mg"]
["55.1.","Donepazilas 5mg",84,"tab.",8.8999999999999996E-2,{"$f":"C354*E354","v":7.476},"DONEPEZIL ACCORD 5 mg plėvele dengtos tabletės N28 (Accord Healthcare Limited)"]
[null,null,null,null,"Suma be PVM",{"$f":"F354","v":7.476}]
[null,null,null,null,"PVM suma",{"$f":"F355*0.05","v":0.37380000000000002}]
[null,null,null,null,"Suma su PVM",{"$f":"F355+F356","v":7.8498000000000001}]
[]
["56.","Doripenemas 500mg miltukai infuziniam tirpalui "]
["56.1.","Doripenemas 500mg  miltukai infuziniam tirpalui ",20,"amp."]
[null,null,null,null,"Suma be PVM"]
[null,null,null,null,"PVM suma"]
[null,null,null,null,"Suma su PVM"]
[]
["57.","Efedrino hidrochloridas 25mg/ml"]
["57.1.","Efedrino hidrochloridas 25mg/ml",1000,"amp.",0.8,{"$f":"C366*E366","v":800},"EPHEDRIN AMINO 50 mg/ml injekcinis tirpalas 1 ml N100 (Amino AG)"]
[null,null,null,null,"Suma be PVM",{"$f":"F366","v":800}]
[null,null,null,null,"PVM suma",{"$f":"F367*0.05","v":40}]
[null,null,null,null,"Suma su PVM",{"$f":"F367+F368","v":840}]
[]
["58.","Eritromicinas 500mg injekcijoms"]
["58.1.","Eritromicinas 500mg injekcijoms",20,"amp."]
[null,null,null,null,"Suma be PVM"]
[null,null,null,null,"PVM suma"]
[null,null,null,null,"Suma su PVM"]
[]
["59.","Ertapanemas 1000mg injekcijoms"]
["59.1.","Ertapanemas 1000mg injekcijoms",20,"amp."]
[null,null,null,null,"Suma be PVM"]
[null,null,null,null,"PVM suma"]
[null,null,null,null,"Suma su PVM"]
[]
["60.","Estazolamum 2mg"]
["60.1.","Estazolamum 2mg",40,"tab.",0.22,{"$f":"C384*E384","v":8.8000000000000007},"ESTAZOLAM TC 2 mg tab. N20 (Tarchomin Polfa S.A.)"]
[null,null,null,null,"Suma be PVM",{"$f":"F384","v":8.8000000000000007}]
[null,null,null,null,"PVM suma",{"$f":"F385*0.05","v":0.44000000000000006}]
[null,null,null,null,"Suma su PVM",{"$f":"F385+F386","v":9.24}]
[]
["61.","Etambutolis 1,0g "]
["61.1.","Etambutolis 1,0g ",100,"amp.",3.7650000000000001,{"$f":"C390*E390","v":376.5},"EMB-FATOL 1,0 g koncentratas infuziniam tirpalui N10 (Riemser Pharma GmbH)"]
[null,null,null,null,"Suma be PVM",{"$f":"F390","v":376.5}]
[null,null,null,null,"PVM suma",{"$f":"F391*0.05","v":18.824999999999999}]
[null,null,null,null,"Suma su PVM",{"$f":"F391+F392","v":395.32499999999999}]
[]
["62.","Etilo spiritas 96%"]
["62.1.","Etilo spiritas 96%",4200,"L",1.47,{"$f":"C396*E396","v":6174},"SPIRITUS AETHYLICUS KOEF. Į KG 1,1961) (96% (UAB \"Valentis\")"]
[null,null,null,null,"Suma be PVM",{"$f":"F396","v":6174}]
[null,null,null,null,"PVM suma",{"$f":"F397*0.21","v":1296.54}]
[null,null,null,null,"Suma su PVM",{"$f":"F397+F398","v":7470.54}]
[]
["63.","Europinio standarto serija"]
["63.1.","Europinio standarto serija. Alergenai švirkštuose po 5ml. 30 skirtingų alergenų rinkinys. Rinkinį sudaro:1) Kalio dichromatas, 2) Parafenilendiaminas (ppd), 3) Tiuramų mišinys, 4) Niomicino sulfatas, 5) Kobalto chloridas, 6) Benzokainas, 7) Nikelio sulfatas, 8) Kliokvinolis, 9) Kanifolija, 10) Parabenų mišinys, 11) N-Izopropil-n-fenil-4 Parafenilendiaminas, 12) Vilnos alkogoliai (lanolinas), 13) Merkaptatų mišinys, 14) Epolisinės dervos, 15) Peru Balzamas, 16) 4-butilifenol formaldehido derva, 17) Merkaptobenzotiazolis, 18) Formaldehidas, 19) Aromatų   mišinys I, 20) Seskviterpenelaktonų mišinys, 21) Kvetenijus-15, 22) Priminas, 23) (chlor)- Metilizotiazolinas MCIIMI, 24) Budesonidas, 25) Tiksokortolio privalastas, 26) Metildibromogliutaronitrilas, 27) Aromatų mišinys II, 28) Hidroksimetilpertilcikloheksen karboksaldehidas, 29) Metilizotiazolinonas c. 0,2%, 30) Tekstilė ",1,"rinkinys"]
[null,null,null,null,"Suma be PVM"]
[null,null,null,null,"PVM suma"]
[null,null,null,null,"Suma su PVM"]
[]
["64.","Fenitoinas 250mg injekcijoms"]
["64.1.","Fenitoinas 250mg injekcijoms",10,"amp.",6.88,{"$f":"C408*E408","v":68.8},"PHENHYDAN 50 mg/ml injekcinis tirpalas 5 ml N5 (Desitin Arzneimittel GmbH)"]
[null,null,null,null,"Suma be PVM",{"$f":"F408","v":68.8}]
[null,null,null,null,"PVM suma",{"$f":"F409*0.05","v":3.44}]
[null,null,null,null,"Suma su PVM",{"$f":"F409+F410","v":72.239999999999995}]
[]
["65.","Fenobarbitalis 100mg "]
["65.1.","Fenobarbitalis 100mg ",50,"tab.",0.14199999999999999,{"$f":"C414*E414","v":7.1},"PHENAEMAL 100 mg tab. N50 (Desitin Arzneimittel GmbH)"]
[null,null,null,null,"Suma be PVM",{"$f":"F414","v":7.1}]
[null,null,null,null,"PVM suma",{"$f":"F415*0.05","v":0.35499999999999998}]
[null,null,null,null,"Suma su PVM",{"$f":"F415+F416","v":7.4550000000000001}]
[]
["66.","Fenobarbitalis 200mg"]
["66.1.","Fenobarbitalis 200mg",20,"amp.",5.66,{"$f":"C420*E420","v":113.2},"LUMINAL 200 mg/ml injekcinis tirpalas N5 (Desitin Arzneimittel GmbH)"]
[null,null,null,null,"Suma be PVM",{"$f":"F420","v":113.2}]
[null,null,null,null,"PVM suma",{"$f":"F421*0.05","v":5.66}]
[null,null,null,null,"Suma su PVM",{"$f":"F421+F422","v":118.86}]
[]
["67.","Geležies (III) hidroksido – polimaltozės komplekso pavidalu 100mg/2ml injekcijoms"]
["67.1.","Geležies (III) hidroksido – polimaltozės komplekso pavidalu 100mg/2ml injekcijoms",100,"amp.",0.86,{"$f":"C426*E426","v":86},"FERRUM LEK TIRPALAS 100MG/2ML N50 INJEKCINIS (Lek Pharmaceuticals d.d.)"]
[null,null,null,null,"Suma be PVM",{"$f":"F426","v":86}]
[null,null,null,null,"PVM suma",{"$f":"F427*0.05","v":4.3}]
[null,null,null,null,"Suma su PVM",{"$f":"F427+F428","v":90.3}]
[]
["68.","Fitomenadionas 10mg injekcijoms "]
["68.1.","Fitomenadionas 10mg injekcijoms ",3000,"amp.",0.38800000000000001,{"$f":"C432*E432","v":1164},"KANAVIT 10 mg/ml injekcinis tirpalas N5 (BB Pharma s.r.o.)"]
[null,null,null,null,"Suma be PVM",{"$f":"F432","v":1164}]
[null,null,null,null,"PVM suma",{"$f":"F433*0.05","v":58.2}]
[null,null,null,null,"Suma su PVM",{"$f":"F433+F434","v":1222.2}]
[]
["69.","Fuchsinum basic"]
["69.1.","Fuchsinum basic",150,"g",0.39600000000000002,{"$f":"C438*E438","v":59.400000000000006},"FUCHSIN BASE 25 G PULV. (GMP)"]
[null,null,null,null,"Suma be PVM",{"$f":"F438","v":59.400000000000006}]
[null,null,null,null,"PVM suma",{"$f":"F439*0.21","v":12.474}]
[null,null,null,null,"Suma su PVM",{"$f":"F439+F440","v":71.874000000000009}]
[]
["70.","Furacillinum"]
["70.1.","Furacillinum",100,"g",0.9,{"$f":"C444*E444","v":90},"FURACILINUM pulv 100 g (GMP)"]
[null,null,null,null,"Suma be PVM",{"$f":"F444","v":90}]
[null,null,null,null,"PVM suma",{"$f":"F445*0.21","v":18.899999999999999}]
[null,null,null,null,"Suma su PVM",{"$f":"F445+F446","v":108.9}]
[]
["71.","Fuzido rūgšties 20mg/g kremas"]
["71.1.","Fuzido rūgšties 20mg/g kremas",350,"g"]
[null,null,null,null,"Suma be PVM"]
[null,null,null,null,"PVM suma"]
[null,null,null,null,"Suma su PVM"]
[]
["72.","Fuzido rūgšties 20mg/g tepalas"]
["72.1.","Fuzido rūgšties 20mg/g tepalas",350,"g"]
[null,null,null,null,"Suma be PVM"]
[null,null,null,null,"PVM suma"]
[null,null,null,null,"Suma su PVM"]
[]
["73.","Fuzido rūgštis+Hidrokortizonas  20mg/10mg/g kremas"]
["73.1.","Fuzido rūgštis+Hidrokortizonas  20mg/10mg/g kremas",150,"g"]
[null,null,null,null,"Suma be PVM"]
[null,null,null,null,"PVM suma"]
[null,null,null,null,"Suma su PVM"]
[]
["74.","Gencijonų šaknų miltelių 2mg, Raktažolų žiedų 6mg, Rūgštynių žolės 6mg, Juodųjų šeivamedžių žiedų 6mg,Verbene herba 6 mg lašai"]
["74.1.","Gencijonų šaknų miltelių 2mg, Raktažolų žiedų 6mg, Rūgštynių žolės 6mg, Juodųjų šeivamedžių žiedų 6mg,Verbene herba 6 mg lašai",1000,"ml",5.8000000000000003E-2,{"$f":"C468*E468","v":58},"SINUPRET GERIAMIEJI LAŠAI 100 ML (Bionorica GmbH)"]
[null,null,null,null,"Suma be PVM",{"$f":"F468","v":58}]
[null,null,null,null,"PVM suma",{"$f":"F469*0.05","v":2.9000000000000004}]
[null,null,null,null,"Suma su PVM",{"$f":"F469+F470","v":60.9}]
[]
["75.","Gencijonų šaknų miltelių 6mg, Raktažolių žiedų miltelių 18mg, Rūgštynių žolės miltelių 18mg, Juodųjų šeivamedžių žiedų miltelių 18mg, Verbenų žolės miltelių 18 mg"]
["75.1.","Gencijonų šaknų miltelių 6mg, Raktažolių žiedų miltelių 18mg, Rūgštynių žolės miltelių 18mg, Juodųjų šeivamedžių žiedų miltelių 18mg, Verbenų žolės miltelių 18 mg",100,"tab.",0.112,{"$f":"C474*E474","v":11.200000000000001},"SINUPRET DENGTOS TABLETĖS N100 (Bionorica GmbH)"]
[null,null,null,null,"Suma be PVM",{"$f":"F474","v":11.200000000000001}]
[null,null,null,null,"PVM suma",{"$f":"F475*0.05","v":0.56000000000000005}]
[null,null,null,null,"Suma su PVM",{"$f":"F475+F476","v":11.760000000000002}]
[]
["76.","Glycerinum"]
["76.1.","Glycerinum",1,"kg",7,{"$f":"C480*E480","v":7},"GLYCERINE 99,5% 1 KG (Centro-Chem sp.j.)"]
[null,null,null,null,"Suma be PVM",{"$f":"F480","v":7}]
[null,null,null,null,"PVM suma",{"$f":"F481*0.21","v":1.47}]
[null,null,null,null,"Suma su PVM",{"$f":"F481+F482","v":8.4700000000000006}]
[]
["77.","Glicerolio trinitratas 5mg injekcijoms"]
["77.1.","Glicerolio trinitratas 5mg injekcijoms",900,"amp.",1.121,{"$f":"C486*E486","v":1008.9},"NITRO POHL 1 mg/ml infuzinis tirpalas 5 ml N10 (G.Pohl-Boskamp GmbH & Co. KG)"]
[null,null,null,null,"Suma be PVM",{"$f":"F486","v":1008.9}]
[null,null,null,null,"PVM suma",{"$f":"F487*0.05","v":50.445}]
[null,null,null,null,"Suma su PVM",{"$f":"F487+F488","v":1059.345}]
[]
["78.","Gliukozė 40% injekcijoms"]
["78.1.","Gliukozė 40% injekcijoms",100,"amp.",0.46,{"$f":"C492*E492","v":46},"GLUCOSE 400 mg/ml injekcinis tirpalas 10 ml N20 (B.Braun Melsungen AG)"]
[null,null,null,null,"Suma be PVM",{"$f":"F492","v":46}]
[null,null,null,null,"PVM suma",{"$f":"F493*0.05","v":2.3000000000000003}]
[null,null,null,null,"Suma su PVM",{"$f":"F493+F494","v":48.3}]
[]
["79.","Gliukozė bevandenė + Natrio chloridas+Natrio citratas + kalio chloridas 6,75g+1,3g+1,45g+0,75g"]
["79.1.","Gliukozė bevandenė + Natrio chloridas+Natrio citratas + kalio chloridas 6,75g+1,3g+1,45g+0,75g",900,"milt.",0.63,{"$f":"C498*E498","v":567},"REHYDRON OPTIM 10,7 g milteliai geriamajam tirpalui paketėlyje N20 (Orion Corporation(Orion Pharma)"]
[null,null,null,null,"Suma be PVM",{"$f":"F498","v":567}]
[null,null,null,null,"PVM suma",{"$f":"F499*0.05","v":28.35}]
[null,null,null,null,"Suma su PVM",{"$f":"F499+F500","v":595.35}]
[]
["80.","Glucosum"]
["80.1.","Glucosum",3,"kg",5.3,{"$f":"C504*E504","v":15.899999999999999},"GLUCOSUM MONOHYDRICUM PYROGEN FREE C*PHARM 02010  1 KG PULV. (Cargill)"]
[null,null,null,null,"Suma be PVM",{"$f":"F504","v":15.899999999999999}]
[null,null,null,null,"PVM suma",{"$f":"F505*0.21","v":3.3389999999999995}]
[null,null,null,null,"Suma su PVM",{"$f":"F505+F506","v":19.238999999999997}]
[]
["81.","Hidrokortizono 10mg/g gelis "]
["81.1.","Hidrokortizono 10mg/g gelis ",450,"g",0.186,{"$f":"C510*E510","v":83.7},"HYDROCORTISON TAKEDA 10 mg/g gelis 30 g N1 (Takeda Pharma AS)"]
[null,null,null,null,"Suma be PVM",{"$f":"F510","v":83.7}]
[null,null,null,null,"PVM suma",{"$f":"F511*0.05","v":4.1850000000000005}]
[null,null,null,null,"Suma su PVM",{"$f":"F511+F512","v":87.885000000000005}]
[]
["82.","Ichtyolum purum"]
["82.1.","Ichtyolum purum",1,"kg",150,{"$f":"C516*E516","v":150},"ICHTHAMMOLUM (ICHTIOLUM PURUM) . 250 g (GMP)"]
[null,null,null,null,"Suma be PVM",{"$f":"F516","v":150}]
[null,null,null,null,"PVM suma",{"$f":"F517*0.21","v":31.5}]
[null,null,null,null,"Suma su PVM",{"$f":"F517+F518","v":181.5}]
[]
["83.","Injekcinis vanduo praplovimui 1000ml"]
["83.1.","Injekcinis vanduo praplovimui 1000ml",4500,"flak."]
[null,null,null,null,"Suma be PVM"]
[null,null,null,null,"PVM suma"]
[null,null,null,null,"Suma su PVM"]
[]
["84.","Insulinas aspartatas (greito poveikio insulinas) 100 VV/ml 3ml užpildytas vienkartiniame švirkštiklyje"]
["84.1.","Insulinas aspartatas (greito poveikio insulinas) 100 VV/ml 3ml užpildytas vienkartiniame švirkštiklyje",10,"vnt.",5.22,{"$f":"C528*E528","v":52.199999999999996},"Insulin NOVORAPID FlexPen 100 V/ml injekcinis tirpalas užpildytame švirkštiklyje 3 ml N5 (Novo Nordisk A/S)"]
[null,null,null,null,"Suma be PVM",{"$f":"F528","v":52.199999999999996}]
[null,null,null,null,"PVM suma",{"$f":"F529*0.05","v":2.61}]
[null,null,null,null,"Suma su PVM",{"$f":"F529+F530","v":54.809999999999995}]
[]
["85.","Insulinas aspartatas su aspartato protaminu (vidutinio poveikio insulinas kombinuotas su greito poveikio insulinu) 100VV/ml 3ml užpildytas vienkartiniame švirkštiklyje 30% insulino asparto kombinuota su 70% insulino asparto protamino"]
["85.1.","Insulinas aspartatas su aspartato protaminu (vidutinio poveikio insulinas kombinuotas su greito poveikio insulinu) 100VV/ml 3ml užpildytas vienkartiniame švirkštiklyje 30% insulino asparto kombinuota su 70% insulino asparto protamino",20,"vnt.",6.16,{"$f":"C534*E534","v":123.2},"Insulin NOVOMIX 30 FlexPen 100 V/ml inj.suspensija užp.švirkštiklyje 3 ml N5 (Novo Nordisk A/S)"]
[null,null,null,null,"Suma be PVM",{"$f":"F534","v":123.2}]
[null,null,null,null,"PVM suma",{"$f":"F535*0.05","v":6.16}]
[null,null,null,null,"Suma su PVM",{"$f":"F535+F536","v":129.36000000000001}]
[]
["86.","Insulinas detemiras (ilgo poveikio insulinas) 100VV/ml 3ml užpildytas vienkartiniame švirkštiklyje."]
["86.1.","Insulinas detemiras (ilgo poveikio insulinas) 100VV/ml 3ml užpildytas vienkartiniame švirkštiklyje.",10,"vnt.",8.32,{"$f":"C540*E540","v":83.2},"LEVEMIR FLEXPEN 100 TV/ml injekcinis tirpalas 3 ml N5 (Novo Nordisk A/S)"]
[null,null,null,null,"Suma be PVM",{"$f":"F540","v":83.2}]
[null,null,null,null,"PVM suma",{"$f":"F541*0.05","v":4.16}]
[null,null,null,null,"Suma su PVM",{"$f":"F541+F542","v":87.36}]
[]
["87.","Insulinas lispras (mišraus poveikio: 25% greito veikimo, 75% bazinio veikimo) 100VV/ml 3ml užpildytas vienkartiniame švirkštiklyje."]
["87.1.","Insulinas lispras (mišraus poveikio: 25% greito veikimo, 75% bazinio veikimo) 100VV/ml 3ml užpildytas vienkartiniame švirkštiklyje.",100,"vnt.",5.7560000000000002,{"$f":"C546*E546","v":575.6},"HUMALOG Mix 25 KwikPen 100 V/ml injekcinė suspensija 3 ml N5 (Eli Lilly Export S.A.)"]
[null,null,null,null,"Suma be PVM",{"$f":"F546","v":575.6}]
[null,null,null,null,"PVM suma",{"$f":"F547*0.05","v":28.78}]
[null,null,null,null,"Suma su PVM",{"$f":"F547+F548","v":604.38}]
[]
["88.","Insulinas lispras (mišraus poveikio: 50% greito veikimo, 50% bazinio veikimo) 100VV/ml 3ml užpildytas vienkartiniame švirkštiklyje."]
["88.1.","Insulinas lispras (mišraus poveikio: 50% greito veikimo, 50% bazinio veikimo) 100VV/ml 3ml užpildytas vienkartiniame švirkštiklyje.",10,"vnt.",5.76,{"$f":"C552*E552","v":57.599999999999994},"HUMALOG Mix 50 KwikPen 100 V/ml injekcinė suspensija 3 ml N5 (Eli Lilly Export S.A.)"]
[null,null,null,null,"Suma be PVM",{"$f":"F552","v":57.599999999999994}]
[null,null,null,null,"PVM suma",{"$f":"F553*0.05","v":2.88}]
[null,null,null,null,"Suma su PVM",{"$f":"F553+F554","v":60.48}]
[]
["89.","Insulinas lispras (vidutinio poveikio) 100VV/ml 3ml užpildytas vienkartiniame švirkštiklyje"]
["89.1.","Insulinas lispras (vidutinio poveikio) 100VV/ml 3ml užpildytas vienkartiniame švirkštiklyje",10,"vnt.",5.22,{"$f":"C558*E558","v":52.199999999999996},"Insulin NOVORAPID FlexPen 100 V/ml injekcinis tirpalas užpildytame švirkštiklyje 3 ml N5 (Novo Nordisk A/S)"]
[null,null,null,null,"Suma be PVM",{"$f":"F558","v":52.199999999999996}]
[null,null,null,null,"PVM suma",{"$f":"F559*0.05","v":2.61}]
[null,null,null,null,"Suma su PVM",{"$f":"F559+F560","v":54.809999999999995}]
[]
["90.","Iodum"]
["90.1.","Iodum",100,"g",0.2,{"$f":"C564*E564","v":20},"IODINE pulv 25 g (GMP)"]
[null,null,null,null,"Suma be PVM",{"$f":"F564","v":20}]
[null,null,null,null,"PVM suma",{"$f":"F565*0.21","v":4.2}]
[null,null,null,null,"Suma su PVM",{"$f":"F565+F566","v":24.2}]
[]
["91.","Ipratropijaus bromidas/ Fenoterolis 250mcg/ 500mcg/ml 20ml"]
["91.1.","Ipratropijaus bromidas/ Fenoterolis 250mcg/ 500mcg/ml 20ml",1000,"ml",0.35,{"$f":"C570*E570","v":350},"BERODUAL 250 µg/500 µg/ml tirpalas inhaliacijoms 20 ml N1 (Boehringer Ingelheim)"]
[null,null,null,null,"Suma be PVM",{"$f":"F570","v":350}]
[null,null,null,null,"PVM suma",{"$f":"F571*0.05","v":17.5}]
[null,null,null,null,"Suma su PVM",{"$f":"F571+F572","v":367.5}]
[]
["92.","Izoniazidas 100mg "]
["92.1.","Izoniazidas 100mg ",8000,"tab.",5.5E-2,{"$f":"C576*E576","v":440},"ISOZID 100 mg tabletės N100 (Riemser Pharma GmbH)"]
[null,null,null,null,"Suma be PVM",{"$f":"F576","v":440}]
[null,null,null,null,"PVM suma",{"$f":"F577*0.05","v":22}]
[null,null,null,null,"Suma su PVM",{"$f":"F577+F578","v":462}]
[]
["93.","Izoniazidas 300mg "]
["93.1.","Izoniazidas 300mg ",100,"tab."]
[null,null,null,null,"Suma be PVM"]
[null,null,null,null,"PVM suma"]
[null,null,null,null,"Suma su PVM"]
[]
["94.","Izoniazidas 500mg milteliai injekciniam tirpalui "]
["94.1.","Izoniazidas 500mg milteliai injekciniam tirpalui ",150,"amp.",4.9260000000000002,{"$f":"C588*E588","v":738.9},"ISOZID N 500 mg milteliai injekciniam tirpalui N10 (Riemser Pharma GmbH)"]
[null,null,null,null,"Suma be PVM",{"$f":"F588","v":738.9}]
[null,null,null,null,"PVM suma",{"$f":"F589*0.05","v":36.945}]
[null,null,null,null,"Suma su PVM",{"$f":"F589+F590","v":775.84500000000003}]
[]
["95.","Kalcio folinatas 25mg"]
["95.1.","Kalcio folinatas 25mg",100,"tab."]
[null,null,null,null,"Suma be PVM"]
[null,null,null,null,"PVM suma"]
[null,null,null,null,"Suma su PVM"]
[]
["96.","Kalcio gliukonatas 10%  "]
["96.1.","Kalcio gliukonatas 10%  ",500,"amp.",0.61,{"$f":"C600*E600","v":305},"CALCIUMGLUCONAT B.BRAUN 100 mg/ml injekcinis tirpalas 10 ml N20 (B.Braun Melsungen AG)"]
[null,null,null,null,"Suma be PVM",{"$f":"F600","v":305}]
[null,null,null,null,"PVM suma",{"$f":"F601*0.05","v":15.25}]
[null,null,null,null,"Suma su PVM",{"$f":"F601+F602","v":320.25}]
[]
["97.","Kalii chloridum"]
["97.1.","Kalii chloridum",20,"kg",10.5,{"$f":"C606*E606","v":210},"KALII CHLORIDUM pulv 1 kg (GMP)"]
[null,null,null,null,"Suma be PVM",{"$f":"F606","v":210}]
[null,null,null,null,"PVM suma",{"$f":"F607*0.21","v":44.1}]
[null,null,null,null,"Suma su PVM",{"$f":"F607+F608","v":254.1}]
[]
["98.","Kalii iodidum"]
["98.1.","Kalii iodidum",200,"g",0.125,{"$f":"C612*E612","v":25},"KALIUM IODIDE pulv 200 g (GMP)"]
[null,null,null,null,"Suma be PVM",{"$f":"F612","v":25}]
[null,null,null,null,"PVM suma",{"$f":"F613*0.21","v":5.25}]
[null,null,null,null,"Suma su PVM",{"$f":"F613+F614","v":30.25}]
[]
["99.","Kalii permanganas"]
["99.1.","Kalii permanganas",200,"g",0.08,{"$f":"C618*E618","v":16},"KALII PERMANGANAS pulv 250 g (GMP)"]
[null,null,null,null,"Suma be PVM",{"$f":"F618","v":16}]
[null,null,null,null,"PVM suma",{"$f":"F619*0.21","v":3.36}]
[null,null,null,null,"Suma su PVM",{"$f":"F619+F620","v":19.36}]
[]
["100.","Ketaminas 50mg/ml., amp. 5ml"]
["100.1.","Ketaminas 50mg/ml., amp. 5ml",120,"amp.",1.5,{"$f":"C624*E624","v":180},"KETAMIN 50 mg/ml injekcinis tirpalas 5 ml N5 (Laboratoires Panpharma)"]
[null,null,null,null,"Suma be PVM",{"$f":"F624","v":180}]
[null,null,null,null,"PVM suma",{"$f":"F625*0.05","v":9}]
[null,null,null,null,"Suma su PVM",{"$f":"F625+F626","v":189}]
[]
["101.","Klonazepamas 2mg"]
["101.1.","Klonazepamas 2mg",600,"tab.",0.10299999999999999,{"$f":"C630*E630","v":61.8},"CLONAZEPAM TC 2 mg tabletės N30 (Tarchomin Polfa S.A.)"]
[null,null,null,null,"Suma be PVM",{"$f":"F630","v":61.8}]
[null,null,null,null,"PVM suma",{"$f":"F631*0.05","v":3.09}]
[null,null,null,null,"Suma su PVM",{"$f":"F631+F632","v":64.89}]
[]
["102.","Klopidogrelis 75 mg"]
["102.1.","Klopidogrelis 75 mg",12000,"tab.",5.33E-2,{"$f":"C636*E636","v":639.6},"TROMBEX PLĖVELE DENGTOS TABLETĖS 75 MG N90 (BLISTERIAI) (Zentiva International, a.s.)"]
[null,null,null,null,"Suma be PVM",{"$f":"F636","v":639.6}]
[null,null,null,null,"PVM suma",{"$f":"F637*0.05","v":31.980000000000004}]
[null,null,null,null,"Suma su PVM",{"$f":"F637+F638","v":671.58}]
[]
["103.","Kolistinas 1000000 TV injekcijoms "]
["103.1.","Kolistinas 1000000 TV injekcijoms ",1400,"amp.",2.21,{"$f":"C642*E642","v":3094},"COLOMYCIN 1 000 000 TV milteliai injekciniam ar infuziniam tirpalui N10 (Forest Laboratoires)"]
[null,null,null,null,"Suma be PVM",{"$f":"F642","v":3094}]
[null,null,null,null,"PVM suma",{"$f":"F643*0.05","v":154.70000000000002}]
[null,null,null,null,"Suma su PVM",{"$f":"F643+F644","v":3248.7}]
[]
["104.","Ksantinolio nikotinatas 150mg "]
["104.1.","Ksantinolio nikotinatas 150mg ",1000,"tab."]
[null,null,null,null,"Suma be PVM"]
[null,null,null,null,"PVM suma"]
[null,null,null,null,"Suma su PVM"]
[]
["105.","Kvinino dihidrochloridas 250mg/2ml "]
["105.1.","Kvinino dihidrochloridas 250mg/2ml ",50,"amp."]
[null,null,null,null,"Suma be PVM"]
[null,null,null,null,"PVM suma"]
[null,null,null,null,"Suma su PVM"]
[]
["106.","Kvinino dihidrochloridas 600mg/2ml"]
["106.1.","Kvinino dihidrochloridas 600mg/2ml",50,"amp."]
[null,null,null,null,"Suma be PVM"]
[null,null,null,null,"PVM suma"]
[null,null,null,null,"Suma su PVM"]
[]
["107.","Kvinino sulfatas 300mg "]
["107.1.","Kvinino sulfatas 300mg ",60,"tab."]
[null,null,null,null,"Suma be PVM"]
[null,null,null,null,"PVM suma"]
[null,null,null,null,"Suma su PVM"]
[]
["108.","Labetalolis 100mg "]
["108.1.","Labetalolis 100mg ",100,"tab."]
[null,null,null,null,"Suma be PVM"]
[null,null,null,null,"PVM suma"]
[null,null,null,null,"Suma su PVM"]
[]
["109.","Labetalolis 5mg/ml "]
["109.1.","Labetalolis 5mg/ml ",10,"amp."]
[null,null,null,null,"Suma be PVM"]
[null,null,null,null,"PVM suma"]
[null,null,null,null,"Suma su PVM"]
[]
["110.","Lactobacillus acidophilus + Lactobacillus bifidus + Jogurto kultūra + Streptococcus thermophilus + Lactobacillus bulgaris apie 2mlrd "]
["110.1.","Lactobacillus acidophilus + Lactobacillus bifidus + Jogurto kultūra + Streptococcus thermophilus + Lactobacillus bulgaris apie 2mlrd ",4500,"kaps.",7.3999999999999996E-2,{"$f":"C684*E684","v":333},"YOGURT KIETOS KAPSULĖS N75 LITFAS (Pharmascience Inc.)"]
[null,null,null,null,"Suma be PVM",{"$f":"F684","v":333}]
[null,null,null,null,"PVM suma",{"$f":"F685*0.21","v":69.929999999999993}]
[null,null,null,null,"Suma su PVM",{"$f":"F685+F686","v":402.93}]
[]
["111.","Lactobacillus rhamnosus bifidobacterium longum, gliukozė, keratonijų pupelių lipai, magnio stearatas, oligofruktozė, želatina, metakrilo rūgšties akrilato kopolimeras 1, acetilinti kopolimerai, talkas ir dažiklis titano dioksidas"]
["111.1.","Lactobacillus rhamnosus bifidobacterium longum, gliukozė, keratonijų pupelių lipai, magnio stearatas, oligofruktozė, želatina, metakrilo rūgšties akrilato kopolimeras 1, acetilinti kopolimerai, talkas ir dažiklis titano dioksidas",100,"milt."]
[null,null,null,null,"Suma be PVM"]
[null,null,null,null,"PVM suma"]
[null,null,null,null,"Suma su PVM"]
[]
["112.","Lactobacillus rhamnosus GG (5 x 109)  be laktozės ir gliuteno "]
["112.1.","Lactobacillus rhamnosus GG (5 x 109)  be laktozės ir gliuteno ",800,"kaps.",0.245,{"$f":"C696*E696","v":196},"GEFILUS PLUS KAPSULĖS N20 (Valio Ltd)"]
[null,null,null,null,"Suma be PVM",{"$f":"F696","v":196}]
[null,null,null,null,"PVM suma",{"$f":"F697*0.21","v":41.16}]
[null,null,null,null,"Suma su PVM",{"$f":"F697+F698","v":237.16}]
[]
["113.","Lactobacillus rhamnosus GG (5 x 109)  be laktozės ir gliuteno lašai "]
["113.1.","Lactobacillus rhamnosus GG (5 x 109)  be laktozės ir gliuteno lašai ",600,"ml",1.0900000000000001,{"$f":"C702*E702","v":654},"GEFILUS LAŠAI 7,5 ML N1 (Valio Ltd)"]
[null,null,null,null,"Suma be PVM",{"$f":"F702","v":654}]
[null,null,null,null,"PVM suma",{"$f":"F703*0.21","v":137.34}]
[null,null,null,null,"Suma su PVM",{"$f":"F703+F704","v":791.34}]
[]
["114.","Lanolinum anhydricum"]
["114.1.","Lanolinum anhydricum",60,"kg",24,{"$f":"C708*E708","v":1440},"LANOLINUM Anhydricum Ph.Eur/ BP/USP 1 kg (CPC Wolfgang Muhlbauer GmbH)"]
[null,null,null,null,"Suma be PVM",{"$f":"F708","v":1440}]
[null,null,null,null,"PVM suma",{"$f":"F709*0.21","v":302.39999999999998}]
[null,null,null,null,"Suma su PVM",{"$f":"F709+F710","v":1742.4}]
[]
["115.","Levodopa+ Benserazidas 100mg/25mg"]
["115.1.","Levodopa+ Benserazidas 100mg/25mg",200,"tab."]
[null,null,null,null,"Suma be PVM"]
[null,null,null,null,"PVM suma"]
[null,null,null,null,"Suma su PVM"]
[]
["116.","Levodopa+ Benserazidas 200mg/50mg"]
["116.1.","Levodopa+ Benserazidas 200mg/50mg",1300,"tab."]
[null,null,null,null,"Suma be PVM"]
[null,null,null,null,"PVM suma"]
[null,null,null,null,"Suma su PVM"]
[]
["117.","Liofilizuotos Saccharomyces boulardii ląstelės 250mg"]
["117.1.","Liofilizuotos Saccharomyces boulardii ląstelės 250mg",120,"kaps.",0.37,{"$f":"C726*E726","v":44.4},"ENTEROL 250 mg kapsulės N10 (Biocodex)"]
[null,null,null,null,"Suma be PVM",{"$f":"F726","v":44.4}]
[null,null,null,null,"PVM suma",{"$f":"F727*0.05","v":2.2200000000000002}]
[null,null,null,null,"Suma su PVM",{"$f":"F727+F728","v":46.62}]
[]
["118.","Liofilizuotos Saccharomyces boulardii ląstelės 250mg milteliai suspensijai"]
["118.1.","Liofilizuotos Saccharomyces boulardii ląstelės 250mg milteliai suspensijai",90,"milt.",0.39,{"$f":"C732*E732","v":35.1},"ENTEROL 250 mg milteliai geriamajai suspensijai N10 (Biocodex)"]
[null,null,null,null,"Suma be PVM",{"$f":"F732","v":35.1}]
[null,null,null,null,"PVM suma",{"$f":"F733*0.05","v":1.7550000000000001}]
[null,null,null,null,"Suma su PVM",{"$f":"F733+F734","v":36.855000000000004}]
[]
["119.","Loratadinum 5mg/5ml suspensija "]
["119.1.","Loratadinum 5mg/5ml suspensija ",300,"ml"]
[null,null,null,null,"Suma be PVM"]
[null,null,null,null,"PVM suma"]
[null,null,null,null,"Suma su PVM"]
[]
["120.","Magnesii sulfas"]
["120.1.","Magnesii sulfas",15,"kg",5.9,{"$f":"C744*E744","v":88.5},"MAGNESII SULFAS 1 KG PULV. (GMP)"]
[null,null,null,null,"Suma be PVM",{"$f":"F744","v":88.5}]
[null,null,null,null,"PVM suma",{"$f":"F745*0.21","v":18.585000000000001}]
[null,null,null,null,"Suma su PVM",{"$f":"F745+F746","v":107.08500000000001}]
[]
["121.","Makrogolis/Natrio sulfatas bevandenis/natrio chloridas/kalio chloridas/askorbo rūgštis/ Natrio askorbatas 100g/7,5g/2,69g/1,015g/4,7g/5,9g"]
["121.1.","Makrogolis/Natrio sulfatas bevandenis/natrio chloridas/kalio chloridas/askorbo rūgštis/ Natrio askorbatas 100g/7,5g/2,69g/1,015g/4,7g/5,9g",60,"milt."]
[null,null,null,null,"Suma be PVM"]
[null,null,null,null,"PVM suma"]
[null,null,null,null,"Suma su PVM"]
[]
["122.","Melanidine 0,3% 50ml flakonai"]
["122.1.","Melanidine 0,3% 50ml flakonai",10,"flak."]
[null,null,null,null,"Suma be PVM"]
[null,null,null,null,"PVM suma"]
[null,null,null,null,"Suma su PVM"]
[]
["123.","Memantinas 5mg "]
["123.1.","Memantinas 5mg ",60,"tab."]
[null,null,null,null,"Suma be PVM"]
[null,null,null,null,"PVM suma"]
[null,null,null,null,"Suma su PVM"]
[]
["124.","Mentolio tirpalas izovalerijono rūgšties metilo esteryje 60mg "]
["124.1.","Mentolio tirpalas izovalerijono rūgšties metilo esteryje 60mg ",400,"tab.",5.1999999999999998E-2,{"$f":"C768*E768","v":20.8},"VALIDOL-LUBNYPHARM poliežuvinės tabletės N10 (AAB Lubnypharm)"]
[null,null,null,null,"Suma be PVM",{"$f":"F768","v":20.8}]
[null,null,null,null,"PVM suma",{"$f":"F769*0.21","v":4.3680000000000003}]
[null,null,null,null,"Suma su PVM",{"$f":"F769+F770","v":25.167999999999999}]
[]
["125.","Metamizolum natricum "]
["125.1.","Metamizolum natricum ",2,"kg",180,{"$f":"C774*E774","v":360},"ANALGIN ( metamizole sodium ) pulv 0,5 kg (GMP)"]
[null,null,null,null,"Suma be PVM",{"$f":"F774","v":360}]
[null,null,null,null,"PVM suma",{"$f":"F775*0.21","v":75.599999999999994}]
[null,null,null,null,"Suma su PVM",{"$f":"F775+F776","v":435.6}]
[]
["126.","Methylergometrinas 2mg/ml "]
["126.1.","Methylergometrinas 2mg/ml ",30,"amp.",2.1960000000000002,{"$f":"C780*E780","v":65.88000000000001},"METHERGIN 200 µg/ml injekcinis tirpalas 1 ml N5 (Novartis Consumer Health)"]
[null,null,null,null,"Suma be PVM",{"$f":"F780","v":65.88000000000001}]
[null,null,null,null,"PVM suma",{"$f":"F781*0.05","v":3.2940000000000005}]
[null,null,null,null,"Suma su PVM",{"$f":"F781+F782","v":69.174000000000007}]
[]
["127.","Metilenum Blau 10mg/ml"]
["127.1.","Metilenum Blau 10mg/ml",100,"amp.",5.45,{"$f":"C786*E786","v":545},"METIBLO 10 mg/1 ml injekcinis tirpalas N10 (STEROP)"]
[null,null,null,null,"Suma be PVM",{"$f":"F786","v":545}]
[null,null,null,null,"PVM suma",{"$f":"F787*0.05","v":27.25}]
[null,null,null,null,"Suma su PVM",{"$f":"F787+F788","v":572.25}]
[]
["128.","Metotreksatas 10mg"]
["128.1.","Metotreksatas 10mg",100,"tab.",0.41,{"$f":"C792*E792","v":41},"TREXAN 10 MG N10 tab. (Orion Corporation(Orion Pharma)"]
[null,null,null,null,"Suma be PVM",{"$f":"F792","v":41}]
[null,null,null,null,"PVM suma",{"$f":"F793*0.05","v":2.0500000000000003}]
[null,null,null,null,"Suma su PVM",{"$f":"F793+F794","v":43.05}]
[]
["129.","Midodrino hidrochloridas 2,5mg "]
["129.1.","Midodrino hidrochloridas 2,5mg ",100,"tab."]
[null,null,null,null,"Suma be PVM"]
[null,null,null,null,"PVM suma"]
[null,null,null,null,"Suma su PVM"]
[]
["130.","Mizoprostolis 0,2mg "]
["130.1.","Mizoprostolis 0,2mg ",1200,"tab.",0.42,{"$f":"C804*E804","v":504},"CYTOTEC 200 µg tabletės N50 (Pfizer GmbH)"]
[null,null,null,null,"Suma be PVM",{"$f":"F804","v":504}]
[null,null,null,null,"PVM suma",{"$f":"F805*0.05","v":25.200000000000003}]
[null,null,null,null,"Suma su PVM",{"$f":"F805+F806","v":529.20000000000005}]
[]
["131.","Morfino sulfatas 1mg/ml tinkantis intratekalinėms injekcijoms"]
["131.1.","Morfino sulfatas 1mg/ml tinkantis intratekalinėms injekcijoms",200,"amp.",1.99,{"$f":"C810*E810","v":398},"MORPHINI SULFAS SPINAL 1 mg/ml injekcinis tirpalas 2 ml N10 (Warszawskie Zak.Farm. Polfa SA)"]
[null,null,null,null,"Suma be PVM",{"$f":"F810","v":398}]
[null,null,null,null,"PVM suma",{"$f":"F811*0.05","v":19.900000000000002}]
[null,null,null,null,"Suma su PVM",{"$f":"F811+F812","v":417.9}]
[]
["132.","Naloksonas 0,4mg/ml "]
["132.1.","Naloksonas 0,4mg/ml ",400,"amp.",0.83,{"$f":"C816*E816","v":332},"NALOXON WZF POLFA TIRPALAS 0,4 MG/1 ML N10 INJEKCINIS (Warszawskie Zak.Farm. Polfa SA)"]
[null,null,null,null,"Suma be PVM",{"$f":"F816","v":332}]
[null,null,null,null,"PVM suma",{"$f":"F817*0.05","v":16.600000000000001}]
[null,null,null,null,"Suma su PVM",{"$f":"F817+F818","v":348.6}]
[]
["133.","Natrii bromidum"]
["133.1.","Natrii bromidum",10,"kg",22,{"$f":"C822*E822","v":220},"NATRIUM BROMIDE (Sodium Bromide) pulv 1 kg (GMP)"]
[null,null,null,null,"Suma be PVM",{"$f":"F822","v":220}]
[null,null,null,null,"PVM suma",{"$f":"F823*0.21","v":46.199999999999996}]
[null,null,null,null,"Suma su PVM",{"$f":"F823+F824","v":266.2}]
[]
["134.","Natrii chloridi 0.45% 500ml"]
["134.1.","Natrii chloridi 0.45% 500ml",1300,"flak."]
[null,null,null,null,"Suma be PVM"]
[null,null,null,null,"PVM suma"]
[null,null,null,null,"Suma su PVM"]
[]
["135.","Natrii chloridum"]
["135.1.","Natrii chloridum",30,"kg",4,{"$f":"C834*E834","v":120},"NATRII CHLORIDUM (Sodium Chloride) pulv 4 kg (Zaklad Farm. AMARA Sp. z o.o.)"]
[null,null,null,null,"Suma be PVM",{"$f":"F834","v":120}]
[null,null,null,null,"PVM suma",{"$f":"F835*0.21","v":25.2}]
[null,null,null,null,"Suma su PVM",{"$f":"F835+F836","v":145.19999999999999}]
[]
["136.","Natrii citras"]
["136.1.","Natrii citras",100,"g"]
[null,null,null,null,"Suma be PVM"]
[null,null,null,null,"PVM suma"]
[null,null,null,null,"Suma su PVM"]
[]
["137.","Natrii hydrocarbonas"]
["137.1.","Natrii hydrocarbonas",1,"kg"]
[null,null,null,null,"Suma be PVM"]
[null,null,null,null,"PVM suma"]
[null,null,null,null,"Suma su PVM"]
[]
["138.","Natrio chloridas 0,9% tirp. 3000ml"]
["138.1.","Natrio chloridas 0,9% tirp. 3000ml",3600,"flak."]
[null,null,null,null,"Suma be PVM"]
[null,null,null,null,"PVM suma"]
[null,null,null,null,"Suma su PVM"]
[]
["139.","Akių lašai"]
["139.1.","Natrio chlorido 7mg/ml, kalio chlorido, magnio chlorido, paprastųjų akišviečių tinkrūra, polisorbato, natrio tetraborato, dinatrio edetato dihidroksido, benzalkonio chlorido. Akių lašai",500,"ml",0.155,{"$f":"C858*E858","v":77.5},"OCUFLASH 7MG/ML AKIŲ LAŠAI 10ML N2 (Unimed Pharma)"]
[null,null,null,null,"Suma be PVM",{"$f":"F858","v":77.5}]
[null,null,null,null,"PVM suma",{"$f":"F859*0.21","v":16.274999999999999}]
[null,null,null,null,"Suma su PVM",{"$f":"F859+F860","v":93.775000000000006}]
[]
["140.","Natrio pikosulfatas 7,5mg/ml geriamieji lašai, tirpalas"]
["140.1.","Natrio pikosulfatas 7,5mg/ml geriamieji lašai, tirpalas",2100,"ml",0.17,{"$f":"C864*E864","v":357},"GUTTALAX 7,5 mg/ml geriamieji lašai, tirpalas 30 ml N1 (Sanofi-Aventis)"]
[null,null,null,null,"Suma be PVM",{"$f":"F864","v":357}]
[null,null,null,null,"PVM suma",{"$f":"F865*0.05","v":17.850000000000001}]
[null,null,null,null,"Suma su PVM",{"$f":"F865+F866","v":374.85}]
[]
["141.","Specialios medicininės paskirties maitinimo mišinys"]
["141.1.","Specialios medicininės paskirties maitinimo mišinys. Hipoalerginis pilnavertis maisto mišinys kūdikiams, pagamintas aminorūgščių pagrindu. Savo sudėtyje turintis ilgos grandinės polinesočiųjų rūgščių (LCPs) ir nukleotidų. Maisto mišinys skirtas kūdikiams nuo gimimo. Sudėtyje nėra karvės pieno baltymų, todėl tinka mitybos reguliavimui esant alergijai karvės pienui, sudėtiniam baltymų netoleravimui",4000,"g"]
[null,null,null,null,"Suma be PVM"]
[null,null,null,null,"PVM suma"]
[null,null,null,null,"Suma su PVM"]
[]
["142.","Norepinefrinas 1mg/ml "]
["142.1.","Norepinefrinas 1mg/ml ",100,"amp.",2.5,{"$f":"C876*E876","v":250},"NORAD-4 2 mg/ml injekcinis ar infuzinis tirpalas 4 ml N1 (VHB Medi Sciences Limited)"]
[null,null,null,null,"Suma be PVM",{"$f":"F876","v":250}]
[null,null,null,null,"PVM suma",{"$f":"F877*0.05","v":12.5}]
[null,null,null,null,"Suma su PVM",{"$f":"F877+F878","v":262.5}]
[]
["143.","Nosies lašai su D-pantenoliu ir vitaminu A"]
["143.1.","Nosies lašai su D-pantenoliu ir vitaminu A",90,"ml"]
[null,null,null,null,"Suma be PVM"]
[null,null,null,null,"PVM suma"]
[null,null,null,null,"Suma su PVM"]
[]
["144.","Oksacilinas 1000mg milteliai injekciniam tirpalui"]
["144.1.","Oksacilinas 1000mg milteliai injekciniam tirpalui",2200,"amp.",0.78,{"$f":"C888*E888","v":1716},"OXACILLIN 1 g milteliai injekciniam tirpalui N50 (Sintez, OAO)"]
[null,null,null,null,"Suma be PVM",{"$f":"F888","v":1716}]
[null,null,null,null,"PVM suma",{"$f":"F889*0.05","v":85.800000000000011}]
[null,null,null,null,"Suma su PVM",{"$f":"F889+F890","v":1801.8}]
[]
["145.","Oleum Helianthi"]
["145.1.","Oleum Helianthi",100,"kg",6.8,{"$f":"C894*E894","v":680},"OLEUM HELIANTHI (SAULĖGRĄŽŲ ALIEJUS) 1 KG PH.EUR. (CPC Wolfgang Muhlbauer GmbH)"]
[null,null,null,null,"Suma be PVM",{"$f":"F894","v":680}]
[null,null,null,null,"PVM suma",{"$f":"F895*0.21","v":142.79999999999998}]
[null,null,null,null,"Suma su PVM",{"$f":"F895+F896","v":822.8}]
[]
["146.","Oleum vaselini"]
["146.1.","Oleum vaselini",10,"kg",6.9,{"$f":"C900*E900","v":69},"OLEUM VASELINI 0,9 KG (Hansen & Rosenthal)"]
[null,null,null,null,"Suma be PVM",{"$f":"F900","v":69}]
[null,null,null,null,"PVM suma",{"$f":"F901*0.21","v":14.49}]
[null,null,null,null,"Suma su PVM",{"$f":"F901+F902","v":83.49}]
[]
["147.","Oleum Vaselini 50 - 60 ml sterilus"]
["147.1.","Oleum Vaselini 50 - 60 ml sterilus",50,"flak."]
[null,null,null,null,"Suma be PVM"]
[null,null,null,null,"PVM suma"]
[null,null,null,null,"Suma su PVM"]
[]
["148.","Paracetamolio 500mg žvakutės"]
["148.1.","Paracetamolio 500mg žvakutės",200,"žvak."]
[null,null,null,null,"Suma be PVM"]
[null,null,null,null,"PVM suma"]
[null,null,null,null,"Suma su PVM"]
[]
["149.","Perhydrolum 35-38% med."]
["149.1.","Perhydrolum 35-38% med.",2,"kg",5.79,{"$f":"C918*E918","v":11.58},"VANDENILIO PEROKSIDAS KONCENTRUOTAS 30 % 1 L (Reachem)"]
[null,null,null,null,"Suma be PVM",{"$f":"F918","v":11.58}]
[null,null,null,null,"PVM suma",{"$f":"F919*0.21","v":2.4318}]
[null,null,null,null,"Suma su PVM",{"$f":"F919+F920","v":14.011800000000001}]
[]
["150.","Permetrino 40mg/g tepalas "]
["150.1.","Permetrino 40mg/g tepalas ",5200,"g",0.14499999999999999,{"$f":"C924*E924","v":754},"PERMETHRIN 40 MG/G TEPALAS (ALIUM.TUBELĖ) 40 G (LMP SIA)"]
[null,null,null,null,"Suma be PVM",{"$f":"F924","v":754}]
[null,null,null,null,"PVM suma",{"$f":"F925*0.05","v":37.700000000000003}]
[null,null,null,null,"Suma su PVM",{"$f":"F925+F926","v":791.7}]
[]
["151.","Piridoksino hidrochloridas 50mg "]
["151.1.","Piridoksino hidrochloridas 50mg ",200,"tab."]
[null,null,null,null,"Suma be PVM"]
[null,null,null,null,"PVM suma"]
[null,null,null,null,"Suma su PVM"]
[]
["152.","Piridostigminas 60mg "]
["152.1.","Piridostigminas 60mg ",100,"tab."]
[null,null,null,null,"Suma be PVM"]
[null,null,null,null,"PVM suma"]
[null,null,null,null,"Suma su PVM"]
[]
["153.","Pirimetaminas 25mg "]
["153.1.","Pirimetaminas 25mg ",100,"tab."]
[null,null,null,null,"Suma be PVM"]
[null,null,null,null,"PVM suma"]
[null,null,null,null,"Suma su PVM"]
[]
["154.","Pix liquida"]
["154.1.","Pix liquida",1,"kg",90,{"$f":"C948*E948","v":90},"PIX LIQUIDA 100 G (GMP)"]
[null,null,null,null,"Suma be PVM",{"$f":"F948","v":90}]
[null,null,null,null,"PVM suma",{"$f":"F949*0.21","v":18.899999999999999}]
[null,null,null,null,"Suma su PVM",{"$f":"F949+F950","v":108.9}]
[]
["155.","Polydocanolum 3% 2ml"]
["155.1.","Polydocanolum 3% 2ml",70,"amp.",5.24,{"$f":"C954*E954","v":366.8},"AETHOXYSKLEROL 30 mg/ml injekcinis tirpalas 2 ml N5 (Kreussler Pharma)"]
[null,null,null,null,"Suma be PVM",{"$f":"F954","v":366.8}]
[null,null,null,null,"PVM suma",{"$f":"F955*0.05","v":18.34}]
[null,null,null,null,"Suma su PVM",{"$f":"F955+F956","v":385.14}]
[]
["156.","Procaine Hydrochloridum pulv. 1kg (GMP)"]
["156.1.","Procaine Hydrochloridum pulv. 1kg (GMP)",300,"g",0.15,{"$f":"C960*E960","v":45},"PROCAINE HYDROCHLORIDUM 100 GR PULV. (GMP)"]
[null,null,null,null,"Suma be PVM",{"$f":"F960","v":45}]
[null,null,null,null,"PVM suma",{"$f":"F961*0.21","v":9.4499999999999993}]
[null,null,null,null,"Suma su PVM",{"$f":"F961+F962","v":54.45}]
[]
["157.","Protamino sulfatas 7000 antiheparino TV"]
["157.1.","Protamino sulfatas 7000 antiheparino TV",50,"amp."]
[null,null,null,null,"Suma be PVM"]
[null,null,null,null,"PVM suma"]
[null,null,null,null,"Suma su PVM"]
[]
["158.","Protargolum"]
["158.1.","Protargolum",100,"g",0.76,{"$f":"C972*E972","v":76},"ARGENTUM PROTEINICUM (PROTARGOLUM) Ph Eur pulv 25 g (Laboratoires Argenol)"]
[null,null,null,null,"Suma be PVM",{"$f":"F972","v":76}]
[null,null,null,null,"PVM suma",{"$f":"F973*0.21","v":15.959999999999999}]
[null,null,null,null,"Suma su PVM",{"$f":"F973+F974","v":91.96}]
[]
["159.","Racecadotrilis 100mg "]
["159.1.","Racecadotrilis 100mg ",200,"kaps."]
[null,null,null,null,"Suma be PVM"]
[null,null,null,null,"PVM suma"]
[null,null,null,null,"Suma su PVM"]
[]
["160.","Resorcinum"]
["160.1.","Resorcinum",1,"kg",120,{"$f":"C984*E984","v":120},"RESORCINUM 200 G PULV. (GMP)"]
[null,null,null,null,"Suma be PVM",{"$f":"F984","v":120}]
[null,null,null,null,"PVM suma",{"$f":"F985*0.21","v":25.2}]
[null,null,null,null,"Suma su PVM",{"$f":"F985+F986","v":145.19999999999999}]
[]
["161.","Rifampicino 600mg milteliai injekciniam tirpalui "]
["161.1.","Rifampicino 600mg milteliai injekciniam tirpalui ",150,"amp.",9.4499999999999993,{"$f":"C990*E990","v":1417.5},"EREMFAT 600 mg milteliai injekciniam tirpalui N1 (Riemser Pharma GmbH)"]
[null,null,null,null,"Suma be PVM",{"$f":"F990","v":1417.5}]
[null,null,null,null,"PVM suma",{"$f":"F991*0.05","v":70.875}]
[null,null,null,null,"Suma su PVM",{"$f":"F991+F992","v":1488.375}]
[]
["162.","Ringerio acetato malatas 500ml "]
["162.1.","Ringerio acetato malatas 500ml (1000ml šio vaistinio preparato yra: Natrio chlorido 6,8 g; Kalio chlorido 0,3g; Magnio chlorido heksahidrato 0,2g; Kalcio chlorido dihidrato 0,37g; Natrio acetato trihidrato 3,27g; obuolių rūgšties 0,67g)",100,"flak."]
[null,null,null,null,"Suma be PVM"]
[null,null,null,null,"PVM suma"]
[null,null,null,null,"Suma su PVM"]
[]
["163.","Rivaraksbanas 15 mg"]
["163.1.","Rivaraksbanas 15 mg",200,"tab.",0.214,{"$f":"C1002*E1002","v":42.8},"XARELTO 15 mg plėvele dengtos tabletės N98 (Bayer AG)"]
[null,null,null,null,"Suma be PVM",{"$f":"F1002","v":42.8}]
[null,null,null,null,"PVM suma",{"$f":"F1003*0.05","v":2.14}]
[null,null,null,null,"Suma su PVM",{"$f":"F1003+F1004","v":44.94}]
[]
["164.","Rivaraksbanas 20mg"]
["164.1.","Rivaraksbanas 20mg",1600,"tab.",0.214,{"$f":"C1008*E1008","v":342.4},"XARELTO 20 mg plėvele dengtos tabletės N98 (Bayer AG)"]
[null,null,null,null,"Suma be PVM",{"$f":"F1008","v":342.4}]
[null,null,null,null,"PVM suma",{"$f":"F1009*0.05","v":17.12}]
[null,null,null,null,"Suma su PVM",{"$f":"F1009+F1010","v":359.52}]
[]
["165.","Ropivakainas 5mg/ml "]
["165.1.","Ropivakainas 5mg/ml ",500,"amp."]
[null,null,null,null,"Suma be PVM"]
[null,null,null,null,"PVM suma"]
[null,null,null,null,"Suma su PVM"]
[]
["166.","Serumas nuo europinių gyvačių įkandimo 500UI užpild. švirkštas"]
["166.1.","Serumas nuo europinių gyvačių įkandimo 500UI užpild. švirkštas",6,"švirkšt."]
[null,null,null,null,"Suma be PVM"]
[null,null,null,null,"PVM suma"]
[null,null,null,null,"Suma su PVM"]
[]
["167.","Simetikonas 40mg/ml geriamoji emulsija"]
["167.1.","Simetikonas 40mg/ml geriamoji emulsija",4800,"ml",0.10299999999999999,{"$f":"C1026*E1026","v":494.4},"ESPUMISAN L 40 mg/ml geriamoji emulsija 30 ml N1 (Berlin-Chemie/Menarini Group)"]
[null,null,null,null,"Suma be PVM",{"$f":"F1026","v":494.4}]
[null,null,null,null,"PVM suma",{"$f":"F1027*0.05","v":24.72}]
[null,null,null,null,"Suma su PVM",{"$f":"F1027+F1028","v":519.12}]
[]
["168.","Sorbitolis 27g + Manitolis 5,4g 1l, flakonai po 3000ml"]
["168.1.","Sorbitolis 27g + Manitolis 5,4g 1l, flakonai po 3000ml",30,"flak."]
[null,null,null,null,"Suma be PVM"]
[null,null,null,null,"PVM suma"]
[null,null,null,null,"Suma su PVM"]
[]
["169.","Sulfadiazinas 500mg "]
["169.1.","Sulfadiazinas 500mg ",200,"tab."]
[null,null,null,null,"Suma be PVM"]
[null,null,null,null,"PVM suma"]
[null,null,null,null,"Suma su PVM"]
[]
["170.","Sulfametoksazolas + Trimetoprimas 400mg/80mg "]
["170.1.","Sulfametoksazolas + Trimetoprimas 400mg/80mg ",400,"amp.",1.254,{"$f":"C1044*E1044","v":501.6},"BISEPTOL 80 mg/16 mg/ml koncentratas infuziniam tirpalui 5 ml N10 (Warszawskie Zak.Farm. Polfa SA)"]
[null,null,null,null,"Suma be PVM",{"$f":"F1044","v":501.6}]
[null,null,null,null,"PVM suma",{"$f":"F1045*0.05","v":25.080000000000002}]
[null,null,null,null,"Suma su PVM",{"$f":"F1045+F1046","v":526.68000000000006}]
[]
["171.","Sulfasalazinas 500mg "]
["171.1.","Sulfasalazinas 500mg ",100,"tab."]
[null,null,null,null,"Suma be PVM"]
[null,null,null,null,"PVM suma"]
[null,null,null,null,"Suma su PVM"]
[]
["172.","Sulfur praecipitarum"]
["172.1.","Sulfur praecipitarum",2,"kg",30,{"$f":"C1056*E1056","v":60},"SULPHUR PRAECIPITATUM 200 GR PULV. (GMP)"]
[null,null,null,null,"Suma be PVM",{"$f":"F1056","v":60}]
[null,null,null,null,"PVM suma",{"$f":"F1057*0.21","v":12.6}]
[null,null,null,null,"Suma su PVM",{"$f":"F1057+F1058","v":72.599999999999994}]
[]
["173.","Talcum"]
["173.1.","Talcum",1,"kg",2.61,{"$f":"C1062*E1062","v":2.61},"TALCUM pulv 1 kg (Centro-Chem sp.j.)"]
[null,null,null,null,"Suma be PVM",{"$f":"F1062","v":2.61}]
[null,null,null,null,"PVM suma",{"$f":"F1063*0.21","v":0.54809999999999992}]
[null,null,null,null,"Suma su PVM",{"$f":"F1063+F1064","v":3.1580999999999997}]
[]
["174.","Tetagam P 250 VV/ml"]
["174.1.","Tetagam P 250 VV/ml",24,"flak.",198.18,{"$f":"C1068*E1068","v":4756.32},"TETAGAM P 250 VV/ml injekcinis tirpalas užpildytame švirkštiklyje N10 (CSL Behring GmbH)"]
[null,null,null,null,"Suma be PVM",{"$f":"F1068","v":4756.32}]
[null,null,null,null,"PVM suma",0]
[null,null,null,null,"Suma su PVM",{"$f":"F1069+F1070","v":4756.32}]
[]
["175.","Tetrazepamas 50mg "]
["175.1.","Tetrazepamas 50mg ",50,"tab."]
[null,null,null,null,"Suma be PVM"]
[null,null,null,null,"PVM suma"]
[null,null,null,null,"Suma su PVM"]
[]
["176.","Tigeciklinas 50mg "]
["176.1.","Tigeciklinas 50mg ",50,"amp.",49.2,{"$f":"C1080*E1080","v":2460},"TYGACIL MILTELIAI INFUZINIO TIRPALO KONCENTRATUI 50MG N10 (PFIZER H.C.P. Corporation)"]
[null,null,null,null,"Suma be PVM",{"$f":"F1080","v":2460}]
[null,null,null,null,"PVM suma",{"$f":"F1081*0.05","v":123}]
[null,null,null,null,"Suma su PVM",{"$f":"F1081+F1082","v":2583}]
[]
["177.","Timololum et Brinzolamidum 5mg/10mg akių lašai"]
["177.1.","Timololum et Brinzolamidum 5mg/10mg akių lašai",10,"ml"]
[null,null,null,null,"Suma be PVM"]
[null,null,null,null,"PVM suma"]
[null,null,null,null,"Suma su PVM"]
[]
["178.","Tiopentalio natrio druska 1000mg"]
["178.1.","Tiopentalio natrio druska 1000mg",300,"amp.",1.68,{"$f":"C1092*E1092","v":504},"THIOPENTAL BP 1 g milteliai injekciniam tirpalui N50 (Rotexmedica GmbH)"]
[null,null,null,null,"Suma be PVM",{"$f":"F1092","v":504}]
[null,null,null,null,"PVM suma",{"$f":"F1093*0.05","v":25.200000000000003}]
[null,null,null,null,"Suma su PVM",{"$f":"F1093+F1094","v":529.20000000000005}]
[]
["179.","Tirpalas (infuzijoms) "]
["179.1.","Tirpalas (infuzijoms) 1000ml: 40g Želatinos + 5,55g Natrio chlorido + 3,27g natrio acetato trihidrato + 0,3g Kalio chlorido + 0,15g Kalcio chlorido dihidrato + 0,2g magnio chlorido heksahidrato. 500 ml flakonai",130,"flak."]
[null,null,null,null,"Suma be PVM"]
[null,null,null,null,"PVM suma"]
[null,null,null,null,"Suma su PVM"]
[]
["180.","Tirpalas odos dūrimo testui - Fenolinis glicerolis"]
["180.1.","Tirpalas odos dūrimo testui - Fenolinis glicerolis flakonai/buteliukai po 2,5ml ± 0,5ml",3,"ml"]
[null,null,null,null,"Suma be PVM"]
[null,null,null,null,"PVM suma"]
[null,null,null,null,"Suma su PVM"]
[]
["181.","Tirpalas odos dūrimo testui - Histamino HCl"]
["181.1.","Tirpalas odos dūrimo testui - Histamino HCl flakonai/buteliukai po 2,5ml ± 0,5ml",3,"ml"]
[null,null,null,null,"Suma be PVM"]
[null,null,null,null,"PVM suma"]
[null,null,null,null,"Suma su PVM"]
[]
["182.","Tirpalas odos dūrimo testui - namų erkė"]
["182.1.","Tirpalas odos dūrimo testui - namų erkė (Derm. Farinae) flakonai/buteliukai po 2,5ml ± 0,5ml",3,"ml"]
[null,null,null,null,"Suma be PVM"]
[null,null,null,null,"PVM suma"]
[null,null,null,null,"Suma su PVM"]
[]
["183.","Tirpalas odos dūrimo testui -  namų erkė (derm. Pteronyssinus) "]
["183.1.","Tirpalas odos dūrimo testui -  namų erkė (derm. Pteronyssinus) flakonai/buteliukai po 2,5ml ± 0,5ml",3,"ml"]
[null,null,null,null,"Suma be PVM"]
[null,null,null,null,"PVM suma"]
[null,null,null,null,"Suma su PVM"]
[]
["184.","Tirpalas odos dūrimo testui - Alternaria"]
["184.1.","Tirpalas odos dūrimo testui - Alternaria flakonai/buteliukai po 2,5ml ± 0,5ml",3,"ml"]
[null,null,null,null,"Suma be PVM"]
[null,null,null,null,"PVM suma"]
[null,null,null,null,"Suma su PVM"]
[]
["185.","Tirpalas odos dūrimo testui - Aspergillus mix (pelėsis)"]
["185.1.","Tirpalas odos dūrimo testui - Aspergillus mix (pelėsis) flakonai/buteliukai po 2,5ml ± 0,5ml",6,"ml"]
[null,null,null,null,"Suma be PVM"]
[null,null,null,null,"PVM suma"]
[null,null,null,null,"Suma su PVM"]
[]
["186.","Tirpalas odos dūrimo testui - Plunksnos (feather mix)"]
["186.1.","Tirpalas odos dūrimo testui - Plunksnos (feather mix) flakonai/buteliukai po 2,5ml ± 0,5ml",3,"ml"]
[null,null,null,null,"Suma be PVM"]
[null,null,null,null,"PVM suma"]
[null,null,null,null,"Suma su PVM"]
[]
["187.","Tirpalas odos dūrimo testui - Katės plaukai"]
["187.1.","Tirpalas odos dūrimo testui - Katės plaukai  flakonai/buteliukai po 2,5ml ± 0,5ml",3,"ml"]
[null,null,null,null,"Suma be PVM"]
[null,null,null,null,"PVM suma"]
[null,null,null,null,"Suma su PVM"]
[]
["188.","Tirpalas odos dūrimo testui - Šuns plaukai"]
["188.1.","Tirpalas odos dūrimo testui - Šuns plaukai  flakonai/buteliukai po 2,5ml ± 0,5ml",3,"ml"]
[null,null,null,null,"Suma be PVM"]
[null,null,null,null,"PVM suma"]
[null,null,null,null,"Suma su PVM"]
[]
["189.","Tirpalas odos dūrimo testui - Pušis"]
["189.1.","Tirpalas odos dūrimo testui - Pušis  flakonai/buteliukai po 2,5ml ± 0,5ml",3,"ml"]
[null,null,null,null,"Suma be PVM"]
[null,null,null,null,"PVM suma"]
[null,null,null,null,"Suma su PVM"]
[]
["190.","Tirpalas odos dūrimo testui - 5 - 6-ių žolių mišinys"]
["190.1.","Tirpalas odos dūrimo testui - 5 - 6-ių žolių mišinys flakonai/buteliukai po 2,5ml ± 0,5ml",3,"ml"]
[null,null,null,null,"Suma be PVM"]
[null,null,null,null,"PVM suma"]
[null,null,null,null,"Suma su PVM"]
[]
["191.","Tirpalas odos dūrimo testui - 12-os žolių mišinys"]
["191.1.","Tirpalas odos dūrimo testui - 12-os žolių mišinys flakonai/buteliukai po 2,5ml ± 0,5ml",6,"ml"]
[null,null,null,null,"Suma be PVM"]
[null,null,null,null,"PVM suma"]
[null,null,null,null,"Suma su PVM"]
[]
["192.","Tirpalas odos dūrimo testui - Fagaceae mix"]
["192.1.","Tirpalas odos dūrimo testui - Fagaceae mix flakonai/buteliukai po 2,5ml ± 0,5ml",3,"ml"]
[null,null,null,null,"Suma be PVM"]
[null,null,null,null,"PVM suma"]
[null,null,null,null,"Suma su PVM"]
[]
["193.","Tirpalas odos dūrimo testui - Betulaceae mix (medžių mišinys)"]
["193.1.","Tirpalas odos dūrimo testui - Betulaceae mix (medžių mišinys) flakonai/buteliukai po 2,5ml ± 0,5ml",3,"ml"]
[null,null,null,null,"Suma be PVM"]
[null,null,null,null,"PVM suma"]
[null,null,null,null,"Suma su PVM"]
[]
["194.","Tirpalas odos dūrimo testui - Chenopodiaceae "]
["194.1.","Tirpalas odos dūrimo testui - Chenopodiaceae flakonai/buteliukai po 2,5ml ± 0,5ml",3,"ml"]
[null,null,null,null,"Suma be PVM"]
[null,null,null,null,"PVM suma"]
[null,null,null,null,"Suma su PVM"]
[]
["195.","Tirpalas odos dūrimo testui - Medžių mišinys (album goosefoot) "]
["195.1.","Tirpalas odos dūrimo testui - Medžių mišinys (album goosefoot)  flakonai/buteliukai po 2,5ml ± 0,5ml",6,"ml"]
[null,null,null,null,"Suma be PVM"]
[null,null,null,null,"PVM suma"]
[null,null,null,null,"Suma su PVM"]
[]
["196.","Tirpalas odos dūrimo testui - Compositae (chrizantemos)"]
["196.1.","Tirpalas odos dūrimo testui - Compositae (chrizantemos)  flakonai/buteliukai po 2,5ml ± 0,5ml",3,"ml"]
[null,null,null,null,"Suma be PVM"]
[null,null,null,null,"PVM suma"]
[null,null,null,null,"Suma su PVM"]
[]
["197.","Tirpalas odos dūrimo testui - Česnakas (garlic)"]
["197.1.","Tirpalas odos dūrimo testui - Česnakas (garlic) flakonai/buteliukai po 2,5ml ± 0,5ml",3,"ml"]
[null,null,null,null,"Suma be PVM"]
[null,null,null,null,"PVM suma"]
[null,null,null,null,"Suma su PVM"]
[]
["198.","Tirpalas odos dūrimo testui - Svogūnas (onion)"]
["198.1.","Tirpalas odos dūrimo testui - Svogūnas (onion) flakonai/buteliukai po 2,5ml ± 0,5ml",3,"ml"]
[null,null,null,null,"Suma be PVM"]
[null,null,null,null,"PVM suma"]
[null,null,null,null,"Suma su PVM"]
[]
["199.","Tirpalas odos dūrimo testui - Krabai (crabs)"]
["199.1.","Tirpalas odos dūrimo testui - Krabai (crabs) flakonai/buteliukai po 2,5ml ± 0,5ml",3,"ml"]
[null,null,null,null,"Suma be PVM"]
[null,null,null,null,"PVM suma"]
[null,null,null,null,"Suma su PVM"]
[]
["200.","Tirpalas odos dūrimo testui - Krevetės (shrimps)"]
["200.1.","Tirpalas odos dūrimo testui - Krevetės (shrimps) flakonai/buteliukai po 2,5ml ± 0,5ml",3,"ml"]
[null,null,null,null,"Suma be PVM"]
[null,null,null,null,"PVM suma"]
[null,null,null,null,"Suma su PVM"]
[]
["201.","Tirpalas odos dūrimo testui - Gėlų vandenų žuvys mišinys (masceree, carp..)"]
["201.1.","Tirpalas odos dūrimo testui - Gėlų vandenų žuvys mišinys (masceree, carp..) flakonai/buteliukai po 2,5ml ± 0,5ml",3,"ml"]
[null,null,null,null,"Suma be PVM"]
[null,null,null,null,"PVM suma"]
[null,null,null,null,"Suma su PVM"]
[]
["202.","Tirpalas odos dūrimo testui - Motiejukas (Timothy grass)"]
["202.1.","Tirpalas odos dūrimo testui -  - Motiejukas (Timothy grass) flakonai/buteliukai po 2,5ml ± 0,5ml",3,"ml"]
[null,null,null,null,"Suma be PVM"]
[null,null,null,null,"PVM suma"]
[null,null,null,null,"Suma su PVM"]
[]
["203.","Tirpalas odos dūrimo testui - Jautiena (Cow meat)"]
["203.1.","Tirpalas odos dūrimo testui - Jautiena (Cow meat) flakonai/buteliukai po 2,5ml ± 0,5ml",3,"ml"]
[null,null,null,null,"Suma be PVM"]
[null,null,null,null,"PVM suma"]
[null,null,null,null,"Suma su PVM"]
[]
["204.","Tirpalas odos dūrimo testui - Sezamas (Sezame)"]
["204.1.","Tirpalas odos dūrimo testui - Sezamas (Sezame) flakonai/buteliukai po 2,5ml ± 0,5ml",3,"ml"]
[null,null,null,null,"Suma be PVM"]
[null,null,null,null,"PVM suma"]
[null,null,null,null,"Suma su PVM"]
[]
["205.","Tirpalas odos dūrimo testui - Karis (curry)"]
["205.1.","Tirpalas odos dūrimo testui - Karis (curry) flakonai/buteliukai po 2,5ml ± 0,5ml",3,"ml"]
[null,null,null,null,"Suma be PVM"]
[null,null,null,null,"PVM suma"]
[null,null,null,null,"Suma su PVM"]
[]
["206.","Tolterodinas 2mg "]
["206.1.","Tolterodinas 2mg ",168,"tab.",0.253,{"$f":"C1260*E1260","v":42.503999999999998},"TOLTERODINE ACTAVIS 2 mg pailginto atpalaidavimo kapsulės N28 (Actavis)"]
[null,null,null,null,"Suma be PVM",{"$f":"F1260","v":42.503999999999998}]
[null,null,null,null,"PVM suma",{"$f":"F1261*0.05","v":2.1252}]
[null,null,null,null,"Suma su PVM",{"$f":"F1261+F1262","v":44.629199999999997}]
[]
["207.","Traneksamo rūgštis 500mg "]
["207.1.","Traneksamo rūgštis 500mg ",1400,"amp.",0.96,{"$f":"C1266*E1266","v":1344},"EXACYL 100 mg/ml injekcinis tirpalas 5 ml N5 (Warszawskie Zak.Farm. Polfa SA)"]
[null,null,null,null,"Suma be PVM",{"$f":"F1266","v":1344}]
[null,null,null,null,"PVM suma",{"$f":"F1267*0.05","v":67.2}]
[null,null,null,null,"Suma su PVM",{"$f":"F1267+F1268","v":1411.2}]
[]
["208.","Tuberculin 5TU/0,1ml amp. 1ml"]
["208.1.","Tuberculin 5TU/0,1ml amp. 1ml",300,"amp.",11.72,{"$f":"C1272*E1272","v":3516},"TUBERCULIN PPD RT 23 SSI 2 TU/0,1 ml injekcinis tirpalas 1,5 ml N10 (AJ Vaccines A/S)"]
[null,null,null,null,"Suma be PVM",{"$f":"F1272","v":3516}]
[null,null,null,null,"PVM suma",{"$f":"F1273*0.05","v":175.8}]
[null,null,null,null,"Suma su PVM",{"$f":"F1273+F1274","v":3691.8}]
[]
["209.","Umeklidino 55mcg + Vilanterolio 22mcg įkvepiamieji milteliai "]
["209.1.","Umeklidino 55mcg + Vilanterolio 22mcg įkvepiamieji milteliai ",90,"doz.",1.266,{"$f":"C1278*E1278","v":113.94},"ANORO ELLIPTA ĮKVEPIAMIEJI MILTELIAI 55MCG+22MCG 30 DOZIŲ N1 (Glaxo UK-Wellcome)"]
[null,null,null,null,"Suma be PVM",{"$f":"F1278","v":113.94}]
[null,null,null,null,"PVM suma",{"$f":"F1279*0.05","v":5.6970000000000001}]
[null,null,null,null,"Suma su PVM",{"$f":"F1279+F1280","v":119.637}]
[]
["210.","Urea "]
["210.1.","Urea ",2,"kg",30,{"$f":"C1284*E1284","v":60},"UREA pulv 500 g (GMP)"]
[null,null,null,null,"Suma be PVM",{"$f":"F1284","v":60}]
[null,null,null,null,"PVM suma",{"$f":"F1285*0.21","v":12.6}]
[null,null,null,null,"Suma su PVM",{"$f":"F1285+F1286","v":72.599999999999994}]
[]
["211.","Valerijonų šaknų + Sukatžolės žolės + Gudobelės vaisių spiritinė ištrauka 0,34ml/0,33ml/0,33ml/ml "]
["211.1.","Valerijonų šaknų + Sukatžolės žolės + Gudobelės vaisių spiritinė ištrauka 0,34ml/0,33ml/0,33ml/ml ",6000,"ml",2.46E-2,{"$f":"C1290*E1290","v":147.6},"ŠIRDIES DARBĄ GERINANTYS geriamieji lašai, tirpalas 30 ml N1 (UAB \"Valentis\")"]
[null,null,null,null,"Suma be PVM",{"$f":"F1290","v":147.6}]
[null,null,null,null,"PVM suma",{"$f":"F1291*0.05","v":7.38}]
[null,null,null,null,"Suma su PVM",{"$f":"F1291+F1292","v":154.97999999999999}]
[]
["212.","Vaselinum flavum"]
["212.1.","Vaselinum flavum",200,"kg",4.5,{"$f":"C1296*E1296","v":900},"VASELINUM FLAVUM PIONIER 5370 1 KG (PE1,5) (Hansen & Rosenthal)"]
[null,null,null,null,"Suma be PVM",{"$f":"F1296","v":900}]
[null,null,null,null,"PVM suma",{"$f":"F1297*0.21","v":189}]
[null,null,null,null,"Suma su PVM",{"$f":"F1297+F1298","v":1089}]
[]
["213.","Verapamilio hidrochloridas 5mg/2ml injekcijoms"]
["213.1.","Verapamilio hidrochloridas 5mg/2ml  injekcijoms",140,"amp.",0.56799999999999995,{"$f":"C1302*E1302","v":79.52},"VERAPAMIL-RATIOPHARM 5 mg/2 ml injekcinis tirpalas N5 (Ratiopharm GmbH & Co)"]
[null,null,null,null,"Suma be PVM",{"$f":"F1302","v":79.52}]
[null,null,null,null,"PVM suma",{"$f":"F1303*0.05","v":3.976}]
[null,null,null,null,"Suma su PVM",{"$f":"F1303+F1304","v":83.495999999999995}]
[]
["214.","Vitaminas D3 aliejinis tirpalas "]
["214.1.","Vitaminas D3 aliejinis tirpalas ",300,"ml",0.18,{"$f":"C1308*E1308","v":54},"OILESEN Vitaminas D3 400 geriamieji lašai 10 ml (UAB \"Valentis\")"]
[null,null,null,null,"Suma be PVM",{"$f":"F1308","v":54}]
[null,null,null,null,"PVM suma",{"$f":"F1309*0.21","v":11.34}]
[null,null,null,null,"Suma su PVM",{"$f":"F1309+F1310","v":65.34}]
[]
["215.","Zinci oxydum"]
["215.1.","Zinci oxydum",2,"kg",11.5,{"$f":"C1314*E1314","v":23},"ZINCI OXYDUM 1 KG PULV. (GMP)"]
[null,null,null,null,"Suma be PVM",{"$f":"F1314","v":23}]
[null,null,null,null,"PVM suma",{"$f":"F1315*0.21","v":4.83}]
[null,null,null,null,"Suma su PVM",{"$f":"F1315+F1316","v":27.83}]
[]
["216.","Želatinos polisukcinatas 40mg/ml 500ml"]
["216.1.","Želatinos polisukcinatas 40mg/ml 500ml",30,"flak."]
[null,null,null,null,"Suma be PVM"]
[null,null,null,null,"PVM suma"]
[null,null,null,null,"Suma su PVM"]
[]
["217.","Deksketoprofenas 50mg"]
["217.1.","Deksketoprofenas 50mg/2ml",7000,"amp.",0.67200000000000004,{"$f":"C1326*E1326","v":4704},"DEXKETOPROFEN KALCEKS 50 mg/2 ml injekcinis ar infuzinis tirpalas 2 ml N5 (AS KALCEKS)"]
[null,null,null,null,"Suma be PVM",{"$f":"F1326","v":4704}]
[null,null,null,null,"PVM suma",{"$f":"F1327*0.05","v":235.20000000000002}]
[null,null,null,null,"Suma su PVM",{"$f":"F1327+F1328","v":4939.2}]

{"sheet":"Subtiekėjai","index":1,"n_rows":100,"n_cols":9,"rows_kept":100,"cut":false,"hidden":false,"merged":[[4,0,4,1],[4,2,4,4],[4,5,4,7],[4,8,4,9],[1,0,1,9],[3,0,3,1],[3,2,3,4],[3,5,3,7],[3,8,3,9],[5,0,5,1],[5,2,5,4],[5,5,5,7],[5,8,5,9],[6,0,6,1],[6,2,6,4],[6,5,6,7],[6,8,6,9],[17,1,17,6],[17,7,17,9],[7,0,7,1],[7,2,7,4],[7,5,7,7],[7,8,7,9],[8,0,8,1],[8,2,8,4],[8,5,8,7],[8,8,8,9],[10,0,10,9],[12,0,12,9],[14,0,14,9],[16,1,16,6],[16,7,16,9],[18,1,18,6],[18,7,18,9],[19,1,19,6],[19,7,19,9],[20,1,20,6],[20,7,20,9],[38,0,38,9],[21,1,21,6],[21,7,21,9],[24,0,24,3],[24,4,24,9],[25,0,25,9],[26,0,26,9],[28,0,28,9],[32,0,32,3],[32,4,32,9],[35,0,35,3],[35,4,35,9]]}
[]
["Sutarties vykdymui numatome pasitelkti šiuos subtiekėjus / subteikėjus / subrangovus (įrašyti visus subtiekėjus / subteikėjus / subrangovus nepriklausomai nuo tiekiamų prekių/ teikiamų paslaugų/ atliekamų darbų vertės):"]
[]
["Subtiekėjo / subteikėjo / subrangovo (-ų) pavadinimas (-ai)",null,"Adresas",null,null,"Trumpas aprašymas",null,null,"Procentas nuo pasiūlymo kainos be PVM"]
[]
[]
[]
[]
[]
[]
["Jeigu pirkimo dokumentų 18 punkte numatytas subtiekimo / subteikimo / subrangos apribojimas:\nMes patvirtiname, kad subtiekėjams / subteikėjams / subrangovams (tiekėjams, kuriuos pasamdysime dalies sutartyje numatytų prekių tiekimui /paslaugų teikimui / darbų atlikimui) perduodamų tiekti prekių / teikti paslaugų/ atlikti darbų dalis neviršys       proc. pasiūlymo kainos be PVM."]
[]
["Mes patvirtiname, kad esame / nesame (nereikalingą išbraukti) laikomi asocijuotais (susijusiais) su Perkančiąja organizacija pagal Lietuvos Respublikoje galiojančių teisės aktų (Lietuvos Respublikos pelno mokesčio, Lietuvos Respublikos pridėtinės vertės mokesčio ir Lietuvos Respublikos gyventojų pajamų mokesčio įstatymų) nuostatas. "]
[]
["Kartu su pasiūlymu pateikiami šie dokumentai:"]
[]
["Eil.Nr.","\"Pateiktų skaitmeninių dokumentų (ar jų kopijų) pavadinimas\n(pasiūlymą sudarančių konfidencialių dokumentų pavadinimai pažymėti prierašu KONFIDENCIALU)\"",null,null,null,null,null,"Prisegtos bylos (failo) pavadinimas "]
[]
[]
[]
[]
[]
[]
[]
["Pasiūlymo galiojimo užtikrinimui pateikiame :"]
[]
["(Nurodyti užtikrinimo būdą, dydį, dokumentus)"]
[]
["\nPasiūlymas galioja iki termino, nustatyto pirkimo dokumentuose.\n\nPasiūlymo neatskiriama dalis yra (rašoma, jeigu buvo reikalauta prie pasiūlymo pridėti atitinkamą dokumentą)"]
[]
[]
[]
["Tiekėjo arba jo įgalioto asmens pareigų pavadinimas"]
[]
[]
["Pasirašančio asmens vardas ir pavardė"]
[]
[]
["**kadangi visas pasiūlymas pasirašomas saugiu elektroniniu parašu, šio dokumento atskirai pasirašyti neprivaloma."]
[]
[]
[]
[]
[]
[]
[]
[]
[]
[]
[]
[]
[]
[]
[]
[]
[]
[]
[]
[]
[]
[]
[]
[]
[]
[]
[]
[]
[]
[]
[]
[]
[]
[]
[]
[]
[]
[]
[]
[]
[]
[]
[]
[]
[]
[]
[]
[]
[]
[]
[]
[]
[]
[]
[]
[]
[]
[]
[]
[]
["1615 2018-11-30 14:05:39"]